Cogmind - Beta 16 @@@ ROGUE MODE // 2025.12.19 @ 18:43:47 Player: C0-2MO Result: Destroyed by G-73 Enforcer with Heavy Laser Performance ------------- Evolutions (9) 4500 Regions Visited (35) 7000 Robots Destroyed (413) 2065 Value Destroyed (30761) 30761 Prototype IDs (99) 1980 Alien Tech Used (9) 1800 Bonus (35595) 35595 TOTAL SCORE: 83701 Bonus ------- Triggered High Security 500 High Alert Combat Kills 11488 Follower Combat Kills 7607 Entered Garrisons 2200 Used RIF Installer 7500 Met Zhirov 300 Scanned by Researcher 1000 Pursued by Intercept 500 Acquired SGEMP 2000 Delivered SGEMP 2000 Destroyed MAIN.C Guards 500 Cogmind --------- Core Integrity 0/1600 Matter 80/300 Energy 698/700 System Corruption 6% Temperature Cool (18) Movement Core (50) Location -1/Command Parts ------- > --- POWER (3) -------- (None) > --- PROPULSION (6) --- (None) > --- UTILITY (12) ----- 2N-1CE's Frost Array Experimental Energy Well Graphene Brace Relay Coupler [C] (11) Improved System Guard > --- WEAPON (4) ------- (None) > --- INVENTORY (5) ---- Relay Coupler [C] (38) Warp Gun Core Cannon Nanosword Peak State ------------ > --- POWER ------------ Light Quantum Reactor Light Quantum Reactor Light Quantum Reactor > --- PROPULSION ------- Biometal Medium Treads Biometal Medium Treads Biometal Heavy Treads Advanced Heavy Siege Treads > --- UTILITY ---------- 2N-1CE's Frost Array Huge Storage Unit Experimental Energy Well SHELL Armor Graphene Brace Advanced Shield Generator Phase Redirector Relay Coupler [C] Relay Coupler [Hunter] Improved System Guard > --- WEAPON ----------- Core Cannon Enhanced Hardcell Cannon Nanosword > --- INVENTORY -------- Light Quantum Reactor Biometal Medium Treads Experimental Cooling System Relay Coupler [C] Relay Coupler [C] Relay Coupler [C] Relay Coupler [Sentry] Subatomic Replicator Warp Gun Enhanced Hardcell Cannon Enhanced Hardcell Cannon Enhanced Hardcell Cannon Enhanced Hardcell Cannon Micro-nuke Launcher Sigix Terminator Improved Remote Datajack Advanced Remote Datajack [Rating: 238] Favorites ----------- Power Light Antimatter Reactor Engine Angular Momentum Engine Power Core Light Nuclear Core Reactor Light Antimatter Reactor Propulsion Centrium Leg Treads Improved Heavy Treads Leg Centrium Leg Wheel Wheel Hover Unit Antigrav System Flight Unit Nuclear Pulse Array Utility Relay Coupler [NC] Device 2N-1CE's Frost Array Storage Large Storage Unit Processor Improved System Guard Hackware Relay Coupler [NC] Protection SHELL Armor Artifact Core Physics Calibrator Weapon Enhanced Autogun Energy Gun Improved EM Shotgun Energy Cannon Compact HERF Cannon Ballistic Gun Enhanced Autogun Ballistic Cannon Enhanced Hardcell Cannon Launcher Micro-nuke Launcher Special Weapon Improved Remote Datajack Impact Weapon Powered Hammer Slashing Weapon Nanosword Piercing Weapon Lance Build | -11 -10 -10 -8 -8 -8 -8 -8 -8 -7 -7 -7 -7 -6 -6 -5 -5 -5 -5 -5 -5 -5 -5 -4 -4 -4 -4 -4 -3 -3 -2 -2 -2 -2 -1 -1 ------- Run | Yrd Mat Sub Mat Gar Mat Gar Mat Gar Fac Gar Fac Gar Fac Gar Fac Gar Fac Gar Fac Upp Upp Zhi Pro Fac Gar Fac Gar Res Tes Res Qua Sec Gar Acc Com Slots Evolved 18 | . . . 4 . . . . . 2 . . . 2 . 2 . . . . . . . . 2 . . . 2 . 2 . . . 2 . Power 2 | . . . . . . . . . . . . . . . . . . . . . . . . . . . . 1 . 1 . . . . . Propulsion 4 | . . . 2 . . . . . . . . . . . . . . . . . . . . 2 . . . . . . . . . . . Utility 10 | . . . . . . . . . 2 . . . 2 . 2 . . . . . . . . . . . . 1 . 1 . . . 2 . Weapon 2 | . . . 2 . . . . . . . . . . . . . . . . . . . . . . . . . . . . . . . . Parts Attached 343 | 7 9 8 5 3 1 4 11 5 3 8 1 14 1 8 . 9 . 3 44 3 4 5 1 8 36 2 17 23 30 10 24 5 11 11 9 Power 50 | 1 1 . 1 . . 1 2 1 . 1 . 1 1 1 . . . 2 4 1 . . . 1 5 . 2 3 4 . 6 1 4 3 3 Engine 6 | 1 1 . . . . . 1 . . . . . 1 . . . . 1 . . . . . . . . . . . . 1 . . . . Core 13 | . . . 1 . . 1 1 1 . 1 . 1 . 1 . . . . 3 1 . . . . 2 . . . . . . . . . . Reactor 31 | . . . . . . . . . . . . . . . . . . 1 1 . . . . 1 3 . 2 3 4 . 5 1 4 3 3 Propulsion 82 | 2 1 1 3 . . . 2 . 2 . 1 4 . . . 2 . . 12 1 . 3 . 1 11 . 7 4 8 4 7 2 . 2 2 Treads 25 | 1 . . 1 . . . 1 . 1 . . 4 . . . 2 . . 4 . . . . 1 . . . . . . 4 2 . 2 2 Leg 46 | . . 1 2 . . . 1 . 1 . 1 . . . . . . . 1 . . 3 . . 10 . 7 4 8 4 3 . . . . Wheel 3 | 1 1 . . . . . . . . . . . . . . . . . . . . . . . 1 . . . . . . . . . . Hover 4 | . . . . . . . . . . . . . . . . . . . 4 . . . . . . . . . . . . . . . . Flight 4 | . . . . . . . . . . . . . . . . . . . 3 1 . . . . . . . . . . . . . . . Utility 125 | 2 2 4 . 2 . . 1 2 1 6 . 7 . 3 . 6 . 1 20 . 3 2 . 4 9 2 4 11 11 4 6 2 3 4 3 Device 48 | 1 . 2 . 2 . . . . 1 . . 1 . . . . . . 7 . 2 1 . 1 4 . 1 10 4 2 2 1 2 1 3 Storage 11 | 1 1 . . . . . . . . . . . . . . . . . . . . . . 3 . 1 . . 3 . 1 . . 1 . Processor 6 | . . . . . . . . . . . . . . . . . . . 3 . . . . . 1 . . . . . 2 . . . . Hackware 46 | . . . . . . . . 2 . 6 . 6 . 3 . 6 . 1 7 . . . . . 4 1 3 1 1 2 . . 1 2 . Protection 12 | . 1 2 . . . . 1 . . . . . . . . . . . 3 . 1 1 . . . . . . 3 . . . . . . Artifact 2 | . . . . . . . . . . . . . . . . . . . . . . . . . . . . . . . 1 1 . . . Weapon 86 | 2 5 3 1 1 1 3 6 2 . 1 . 2 . 4 . 1 . . 8 1 1 . 1 2 11 . 4 5 7 2 5 . 4 2 1 Energy Gun 23 | . 4 1 1 1 . 1 2 . . 1 . . . 2 . . . . 3 . . . . . 1 . 1 3 2 . . . . . . Energy Cannon 10 | . . . . . . . . . . . . . . . . . . . . . . . 1 . 1 . 2 1 3 . 2 . . . . Ballistic Gun 19 | 2 . . . . 1 . 4 . . . . . . . . . . . 3 1 . . . 1 7 . . . . . . . . . . Ballistic Cannon 13 | . . . . . . . . . . . . 1 . 1 . 1 . . 1 . . . . . 2 . . . . 1 . . 4 1 1 Launcher 4 | . . . . . . 1 . . . . . . . . . . . . . . . . . 1 . . . . 1 . 1 . . . . Special Weapon 9 | . 1 1 . . . . . 1 . . . 1 . 1 . . . . . . 1 . . . . . 1 . . 1 . . . 1 . Impact Weapon 2 | . . 1 . . . 1 . . . . . . . . . . . . . . . . . . . . . . . . . . . . . Slashing Weapon 3 | . . . . . . . . 1 . . . . . . . . . . . . . . . . . . . . . . 2 . . . . Piercing Weapon 3 | . . . . . . . . . . . . . . . . . . . 1 . . . . . . . . 1 1 . . . . . . Special Melee Weapon . | . . . . . . . . . . . . . . . . . . . . . . . . . . . . . . . . . . . . Unidentified Prototypes 35 | . 1 . . . 1 . 3 . . . . 1 . . . . . . 5 . . 4 . 1 . . . 1 3 2 9 4 . . . Corrupted Parts 3 | . . . . . . . . . . . . . . . . . . . . . . . . . 3 . . . . . . . . . . System Corruption 19 | . . . . . . . . . . . . . . . . . . . . . . . . . 19 . . . . . . . . . . Parts Lost 124 | . . . . 1 2 2 . 2 1 1 . 4 . 2 . 2 . . 19 . . . 2 2 21 . 5 4 5 . 15 4 4 4 22 Power 27 | . . . . . . 1 . 1 . . . 2 . . . . . . 1 . . . . 1 3 . 1 1 2 . 5 1 2 1 5 Propulsion 26 | . . . . . . . . . . . . 1 . . . 1 . . 5 . . . . . 7 . . . 2 . 2 1 1 1 5 Utility 36 | . . . . . 1 . . 1 . 1 . 1 . . . 1 . . 9 . . . . 1 4 . 1 3 1 . 3 . 1 1 7 Weapon 35 | . . . . 1 1 1 . . 1 . . . . 2 . . . . 4 . . . 2 . 7 . 3 . . . 5 2 . 1 5 Highest Loss Streak 13 | . . . . 1 2 2 . 1 1 1 . 3 . 1 . 1 . . 8 . . . 2 2 13 . 2 1 2 . 7 3 1 3 11 To Critical Strikes 1 | . . . . . . . . . . . . . . . . . . . 1 . . . . . . . . . . . . . . . . Average Backups 14 | 3 13 13 9 10 11 10 13 13 14 13 13 12 13 12 13 12 13 13 8 3 3 3 4 5 10 15 23 24 21 19 18 13 18 19 16 Power 1 | 1 1 1 1 2 2 1 1 1 1 1 1 1 1 1 1 1 1 1 . . . . . . . 1 1 4 2 1 1 . . . 1 Propulsion 1 | 1 2 . . . . . . 1 1 1 1 1 1 1 1 . 1 1 . . 1 1 . . . . 2 4 2 3 3 1 1 1 . Utility 5 | . 1 1 2 3 4 4 5 4 6 6 6 5 5 5 7 7 7 7 4 1 . . 2 3 4 7 12 9 7 6 4 3 7 7 5 Weapon 4 | . 9 9 4 3 4 2 4 5 4 3 3 3 4 3 3 2 2 2 1 . . 1 . . 3 6 4 3 5 5 5 3 5 6 6 Tool/Special . | . . . . . . . . . . . . . . . . . . . . . . . . . . . . . . . . . . . . Unused Backups 47 | . 5 10 1 . . . 1 1 . 2 . 3 . 2 . 1 . . 7 . . 2 . 1 . . . . 2 . 1 . 4 . 4 Power 1 | . . . . . . . . . . . . . . . . . . . 1 . . . . . . . . . . . . . . . . Propulsion 9 | . 1 2 . . . . . . . . . 1 . . . . . . 1 . . 2 . . . . . . 1 . . . 1 . . Utility 21 | . 1 1 1 . . . . 1 . 2 . 2 . 2 . 1 . . 3 . . . . 1 . . . . . . 1 . 2 . 3 Weapon 12 | . 3 6 . . . . 1 . . . . . . . . . . . 1 . . . . . . . . . 1 . . . . . . Tool/Special 4 | . . 1 . . . . . . . . . . . . . . . . 1 . . . . . . . . . . . . . 1 . 1 Average Slot Usage (%) 81 | . 99 79 77 84 83 87 89 84 74 88 92 78 66 74 70 78 82 81 75 87 82 73 87 75 77 99 94 97 89 81 75 68 73 77 75 Engine 2 | . 13 11 2 . . . . . . . . 1 5 6 5 5 5 1 . . . . . . . . . . . . 1 . . . . Core 1 | . . . 4 7 7 9 8 7 7 7 7 5 . . . . . . 1 4 5 5 5 . 1 . . . . . . . . . . Reactor 3 | . . . . . . . . . . . . . . . . . . 3 2 . . . . 4 2 5 4 7 8 8 8 9 10 11 11 Treads 6 | . 1 . 4 . . . 6 9 6 7 7 12 13 13 11 8 11 11 9 . . . . 4 . . . . . . 8 14 11 9 13 Leg 10 | . . 8 12 23 23 27 20 18 15 15 15 2 . . . . . . . . . 8 17 15 19 31 31 28 27 26 11 . . . . Wheel 1 | . 26 6 . . . . . . . . . . . . . . . . . . . . . . . . . . . . . . . . . Device 4 | . 4 1 . 6 7 9 2 3 3 1 . . . . . . . . 4 11 11 7 5 5 9 1 3 10 6 4 3 10 15 15 15 Storage 6 | . 14 11 7 7 7 9 9 9 7 7 7 7 6 6 5 5 5 5 2 . . . . 2 5 5 5 4 5 8 7 8 5 4 5 Processor 1 | . . . . . . . . . . . . . . . . . . . 2 5 . . . . 2 5 . . . . 3 8 5 4 4 Hackware 16 | . . . . . . . . 1 7 18 23 20 20 28 29 40 41 41 29 23 23 23 23 21 19 29 28 23 17 16 13 . 2 11 8 Protection 4 | . 9 15 15 7 6 . 6 3 . . . . . . . . . . . 5 5 8 11 7 1 . 3 2 3 4 4 4 4 4 2 Energy Gun 5 | . 26 21 28 27 26 20 2 . . . . . . 1 . . . . 3 11 5 . 4 . . . 2 8 7 . . 2 1 . . Energy Cannon 1 | . . . . . . . . . . . . . . . . . . . . . . . . . 3 . 4 3 2 4 3 2 . . 1 Ballistic Gun 3 | . . . . . 3 4 30 20 20 22 22 12 . . . . . . 2 4 5 . 5 9 4 5 . . . . . . . . . Ballistic Cannon 2 | . . . . . . . . . . . . 2 6 4 5 4 5 4 2 . . . . . 1 9 3 . . 1 . . 14 9 7 Special Weapon 2 | . . 1 . . . . . 2 2 2 5 3 6 6 5 5 5 5 2 . 4 5 4 . . 5 5 3 2 2 . . . 2 1 Impact Weapon 1 | . . . 1 2 . 8 2 . . 3 1 6 6 6 5 5 5 5 2 . . . . . . . . . . . . . . . . Peak Build Rating 238 | 6 14 37 46 47 48 44 51 51 48 57 55 63 60 79 79 88 78 97 114 96 100 102 102 107 138 134 141 157 186 199 222 236 227 232 238 Average Rating 108 | 4 12 29 43 45 45 42 47 46 46 53 48 54 59 66 79 78 78 83 87 94 99 93 101 99 94 129 130 150 175 193 208 214 212 214 201 On Entrance 92 | . 6 14 36 45 46 40 43 51 46 48 55 47 58 60 79 79 78 78 97 73 96 100 102 92 80 134 129 132 156 184 197 189 227 202 221 Avg Prop Armor Cover (%) 10 | 17 13 . 3 . . . 5 7 7 7 6 8 . . . . . . 36 . . 3 . 8 9 . 4 . 2 . 3 . . . 30 Naked Turns . | . . . . . . . . . . . . . . . . . . . . . . . . . . . . . . . . . . . . Heaviest Build 213 | 10 38 56 60 60 57 38 47 46 37 40 37 43 51 60 60 60 60 60 64 26 41 42 48 107 95 128 135 140 166 178 187 186 213 212 209 Greatest Support 245 | 10 20 55 75 75 75 75 75 72 72 70 70 150 150 150 150 150 103 103 150 26 26 90 90 90 165 165 165 177 174 172 210 245 245 245 230 Greatest Overweight (x) 16 | . 3 1 1 . . . . 1 . 1 . 1 . . . . . . 4 . 1 1 . 1 16 . . 1 1 1 2 . 1 1 1 Average Overweight (x) . | . . . . . . . . . . . . . . . . . . . . . . . . . . . . . . . . . . . . Largest Inventory Capacity 25 | 8 15 15 15 15 15 15 15 15 15 15 15 15 15 15 15 15 15 15 15 5 5 5 5 25 20 25 25 25 25 25 25 25 25 25 25 Average Capacity 17 | 6 14 15 15 15 15 15 15 15 15 15 15 15 15 15 15 15 15 15 9 5 5 5 5 13 20 21 25 25 25 25 25 25 25 25 24 Most Carried 25 | 6 15 15 15 13 13 13 15 15 15 15 15 15 15 15 15 15 15 15 15 5 5 5 4 7 15 17 25 25 25 25 25 22 25 25 22 Average Carried 16 | 3 13 14 13 12 12 11 14 14 15 14 14 14 15 14 15 14 14 14 8 3 4 4 4 5 10 15 23 24 23 23 23 19 24 22 18 Final Capacity 25 | 8 15 15 15 15 15 15 15 15 15 15 15 15 15 15 15 15 15 15 5 5 5 5 5 20 20 25 25 25 25 25 25 25 25 25 5 Final Carried 25 | 6 15 15 12 12 13 11 15 15 15 15 15 15 15 15 15 14 14 15 5 5 5 4 4 6 15 17 24 25 20 25 22 19 25 20 5 Class Distribution -------------------- 30% | Botlord-Tank 14% | Mutant 11% | Botlord-Gunner 7% | Tank 6% | Hacker-Mutant 6% | Scavenger-Tank 5% | Botlord-Mutant 4% | Gunner 4% | Hacker-Gunner 3% | Bothacker-Gunner Dominant Class ---------------- Mutant | -10/Materials Mutant | -10/Subcaves Tank | -8/Materials Scavenger-Tank | -8/Garrison Scavenger-Tank | -8/Materials Gunner | -8/Garrison Tank | -8/Materials Gunner | -8/Garrison Bothacker-Gunner | -7/Factory Bothacker-Gunner | -7/Garrison Botlord-Gunner | -7/Factory Botlord-Tank | -7/Garrison Botlord-Tank | -6/Factory Botlord-Tank | -6/Garrison Botlord-Tank | -5/Factory Botlord-Tank | -5/Garrison Botlord-Tank | -5/Factory Botlord-Tank | -5/Garrison Botlord-Tank | -5/Factory Tank | -5/Upper Caves Tank | -5/Upper Caves Mutant | -5/Zhirov Tank | -4/Proximity Caves Mutant | -4/Factory Botlord-Mutant | -4/Garrison Botlord-Gunner | -4/Factory Botlord-Tank | -4/Garrison Botlord-Tank | -3/Research Botlord-Gunner | -3/Testing Hacker-Gunner | -2/Research Hacker-Mutant | -2/Quarantine Scavenger-Tank | -2/Section 7 Botlord-Tank | -2/Garrison Botlord-Tank | -1/Access Botlord-Tank | -1/Command Resources | -11 -10 -10 -8 -8 -8 -8 -8 -8 -7 -7 -7 -7 -6 -6 -5 -5 -5 -5 -5 -5 -5 -5 -4 -4 -4 -4 -4 -3 -3 -2 -2 -2 -2 -1 -1 ----------- Run | Yrd Mat Sub Mat Gar Mat Gar Mat Gar Fac Gar Fac Gar Fac Gar Fac Gar Fac Gar Fac Upp Upp Zhi Pro Fac Gar Fac Gar Res Tes Res Qua Sec Gar Acc Com Matter Collected 13925 | 312 92 200 90 50 16 38 725 392 280 561 101 1040 . 364 . 591 127 173 1113 63 56 75 54 7 772 . 999 471 939 212 626 179 1626 998 583 Remotely . | . . . . . . . . . . . . . . . . . . . . . . . . . . . . . . . . . . . . Salvage Created 20089 | 112 261 740 257 775 214 252 727 464 151 643 101 1073 . 659 . 284 . 47 1136 18 . 222 54 48 971 . 641 925 2122 1075 2285 1048 1377 616 791 Parts 842 | 10 22 39 12 40 13 16 31 24 6 33 6 43 . 17 . 7 . . 49 4 . 2 5 6 58 . 31 27 88 39 81 30 42 36 25 Haulers Intercepted 4 | . . . . . 1 . 2 . . . . . . . . . . . 1 . . . . . . . . . . . . . . . . Recyclers Shooed 4 | . . . . . . . 1 . . . . . . . . . . . . . . . . . . . . 1 . 1 1 . . . . Parts Field Recycled . | . . . . . . . . . . . . . . . . . . . . . . . . . . . . . . . . . . . . Retrieved Matter . | . . . . . . . . . . . . . . . . . . . . . . . . . . . . . . . . . . . . Parts Self-Destructed 29 | . . 19 . . . . . . . . . . . . . . . . . 3 . 2 5 . . . . . . . . . . . . Prevented 6 | . . 6 . . . . . . . . . . . . . . . . . . . . . . . . . . . . . . . . . Parts Restored . | . . . . . . . . . . . . . . . . . . . . . . . . . . . . . . . . . . . . Kills | -11 -10 -10 -8 -8 -8 -8 -8 -8 -7 -7 -7 -7 -6 -6 -5 -5 -5 -5 -5 -5 -5 -5 -4 -4 -4 -4 -4 -3 -3 -2 -2 -2 -2 -1 -1 ------- Run | Yrd Mat Sub Mat Gar Mat Gar Mat Gar Fac Gar Fac Gar Fac Gar Fac Gar Fac Gar Fac Upp Upp Zhi Pro Fac Gar Fac Gar Res Tes Res Qua Sec Gar Acc Com Combat Hostiles Destroyed 321 | . 8 12 4 16 4 6 7 13 3 14 2 10 . 8 . 2 . 1 15 . . . 1 2 16 . 11 9 32 13 34 14 32 11 21 Melee 19 | . . . . . . . . 2 . 1 . 1 . 3 . . . . 2 . . . . . 2 . . . 1 1 1 3 . . 2 Guns 104 | . 8 9 4 12 3 3 7 7 2 12 2 5 . . . . . . 6 . . . . 1 5 . . 4 6 . . 4 4 . . Cannons 113 | . . . . . . . . . . . . 2 . 4 . 2 . . 7 . . . 1 . 6 . 7 1 14 2 18 7 24 10 8 AOE 53 | . . 2 . 3 1 3 . 4 . . . . . . . . . . . . . . . 1 . . 4 . 4 7 9 . 4 1 10 Classes Destroyed 27 | 2 4 3 1 2 1 1 1 1 . 1 . . . 1 . . . . 1 . . . . . 1 . . . 4 . 1 . . . 2 Worker 22 | . 1 . . . . . . . . . 1 . . . . . . . 2 . . . . . . . . . 3 2 4 1 . 4 4 Builder 10 | . . . . . . . 1 . . . . . . . . . . . . . . . . . . . . . 4 3 1 . . 1 . Tunneler 2 | 2 . . . . . . . . . . . . . . . . . . . . . . . . . . . . . . . . . . . Hauler 4 | . . . . . 1 . 2 . . . . . . . . . . . 1 . . . . . . . . . . . . . . . . Recycler 22 | 1 . . . . 1 . 3 . . . . . . . . . . . 2 . . . . . . . 1 2 1 3 3 1 . . 4 Carrier 1 | . . . . . . . . . . . . . . . . . . . . . . . . . . . . . . . . . . . 1 Mechanic 1 | . . . . . . . . . . . . . . . . . . . . . . . . . . . . . . . 1 . . . . Operator 4 | . . . 1 . . . . . . . . . . . . . . . 1 . . . . . . . . . . 1 . 1 . . . Turret 2 | . . 2 . . . . . . . . . . . . . . . . . . . . . . . . . . . . . . . . . Watcher 11 | . 1 . . 1 . . 2 . . . . 1 . 1 . . . . 2 . . . . . 1 . . . 1 . . . 1 . . Swarmer 46 | . 6 4 . 6 3 . . . . 4 . 2 . . . . . . 1 . . . . . 6 . . . 3 . 1 . 8 2 . Cutter 6 | . . . . . . . . 2 . . . . . . . . . . . . . . . . . . 4 . . . . . . . . Saboteur 1 | . . . . . . . . . . . . . . . . . . . . . . . . . . . . . 1 . . . . . . Grunt 102 | . 2 2 2 6 1 2 4 9 2 4 1 4 . 4 . 2 . 1 6 . . . . . 5 . . 1 9 6 15 2 12 . . Brawler 7 | . . . . . . . . . . 1 . . . . . . . . 1 . . . . . . . . . 1 . 2 2 . . . Duelist 9 | . . . . 2 . . . . . . . 1 . . . . . . . . . . . . . . . . . 2 1 . 1 . 2 Protector 1 | . . . . . . . . . . . . . . . . . . . 1 . . . . . . . . . . . . . . . . Researcher 4 | . . . . . . . . . . . . . . . . . . . . . . . . . . . . . 1 . 2 1 . . . Sentry 23 | . . 1 2 3 . 1 3 . . 3 . 1 . 1 . . . . 1 . . . . . . . . 1 . 2 . 1 3 . . Specialist 3 | . . . . . . . . . . . . . . 2 . . . . 1 . . . . . . . . . . . . . . . . Hunter 28 | . . . . 1 . . . . 1 . . 1 . 1 . . . . 2 . . . . . 2 . 3 1 5 . . 6 2 1 2 Programmer 66 | . . . . . . 3 . 2 . 2 1 2 . 1 . 1 . . 2 . . . 1 2 2 . 3 6 12 3 6 1 5 6 5 Behemoth 4 | . . . . . . . . . . . . . . . . . . . . . . . . . 1 . 1 . . . . . 1 . 1 Quarantine Guard 8 | . . . . . . . . . . . . . . . . . . . . . . . . . . . . . . . 8 . . . . S7 Guard 2 | . . . . . . . . . . . . . . . . . . . . . . . . . . . . . . . . 2 . . . M Guard 2 | . . . . . . . . . . . . . . . . . . . . . . . . . . . . . . . . . . . 2 Tracker 1 | . . . . . . . . . . . . . . . . . . . . . . . . . . . . . . . . . . 1 . Combat Programmer 3 | . . . . . . . . . . . . . . . . . . . . . . . . . . . . . . . . . . 1 2 Striker 3 | . . . . . . . . . . . . . . . . . . . . . . . . . . . . . 1 . . . . . 2 Executioner 4 | . . . . . . . . . . . . . . . . . . . . . . . . . . . . . . . . . . . 4 Superbehemoth 1 | . . . . . . . . . . . . . . . . . . . . . . . . . . . . . 1 . . . . . . Alpha 7 3 | . . . . . . . . . . . . . . . . . . . . . . . . . . . . . 1 . 1 . . . 1 Protovariant L 1 | . . . . . . . . . . . . . . . . . . . . . . . . . . . . . 1 . . . . . . Subdweller 5 | . . 5 . . . . . . . . . . . . . . . . . . . . . . . . . . . . . . . . . Savage 1 | . . . . . . . . . . . . . . . . . . . . . . . . . . . 1 . . . . . . . . Best Kill Streak 15 | 3 4 3 2 7 6 3 4 8 2 3 2 3 . 2 . 1 . 1 6 . . . 1 2 3 . 5 3 10 8 8 6 5 5 15 Combat Bots Only 11 | . 3 3 2 7 4 3 2 8 2 3 1 3 . 2 . 1 . 1 5 . . . 1 2 3 . 5 3 8 5 5 5 5 3 11 Max Kills in Single Turn 14 | 1 2 2 1 2 3 1 2 2 1 1 2 1 . 1 . 1 . 1 1 . . . 1 1 1 . 3 1 3 3 3 2 2 3 14 Gunslinging 1 | . 1 . . 1 . . . . . . . . . . . . . . . . . . . . . . . . 1 . . . . . . Exploded 10 | . . 1 . 2 1 1 . 2 . . . . . . . . . . . . . . . 1 . . 2 . 1 2 2 . 2 1 10 Melee 1 | . . . . . . . . 1 . 1 . 1 . 1 . . . . 1 . . . . . 1 . . . 1 1 1 1 . . 1 Uniques/NPCs Destroyed . | . . . . . . . . . . . . . . . . . . . . . . . . . . . . . . . . . . . . Combat | -11 -10 -10 -8 -8 -8 -8 -8 -8 -7 -7 -7 -7 -6 -6 -5 -5 -5 -5 -5 -5 -5 -5 -4 -4 -4 -4 -4 -3 -3 -2 -2 -2 -2 -1 -1 -------- Run | Yrd Mat Sub Mat Gar Mat Gar Mat Gar Fac Gar Fac Gar Fac Gar Fac Gar Fac Gar Fac Upp Upp Zhi Pro Fac Gar Fac Gar Res Tes Res Qua Sec Gar Acc Com Hostile Shots Fired 3014 | . 15 83 23 44 8 27 21 40 28 101 12 125 . 89 . 35 . 10 307 . 6 . 65 62 240 . 173 138 227 108 275 146 216 209 181 Missed 967 | . 7 34 7 19 5 10 8 7 9 30 6 37 . 25 . 7 . 2 101 . 3 . 21 23 73 . 52 59 74 36 76 47 83 58 48 Hits 2047 | . 8 49 16 25 3 17 13 33 19 71 6 88 . 64 . 28 . 8 206 . 3 . 44 39 167 . 121 79 153 72 199 99 133 151 133 Melee 16 | . . . . . . . . 9 . . . . . 2 . . . . 1 . . . . . . . . . 2 . . . 1 1 . Projectile 2031 | . 8 49 16 25 3 17 13 24 19 71 6 88 . 62 . 28 . 8 205 . 3 . 44 39 167 . 121 79 151 72 199 99 132 150 133 AOE 48 | . . . . . . . . 2 . . . 1 . . . 3 . . 2 . . . . . . . 2 . 4 . . . . . 34 Critical Strikes 113 | . . 2 1 . . 3 . 5 . 1 . 3 . 4 . 3 . 2 7 . . . 4 2 9 . . 6 13 7 22 5 4 3 7 Actively Blocked 37 | . . . . . . . . . . . . . . . . . . . . . . . 4 2 9 . . . . . 4 4 4 3 7 Part Disruptions 14 | . . . . . . . . . . . . . . . . . . . . . . . 1 . . . 1 3 3 1 3 . 1 . 1 Damage Taken 45451 | . 71 501 241 274 273 265 222 659 305 867 83 1107 . 929 . 730 . 282 4603 . 76 . 910 840 2667 . 1983 1840 3497 1839 5952 2510 2786 3180 5959 Core 4138 | . . 34 . . 40 45 22 81 28 98 27 97 . 121 . 79 . 43 761 . . . 64 96 415 . 151 95 91 207 323 43 47 62 1068 Absorbed by Shields 2369 | . . . . . . . . . . . . . . 114 . 107 . . . . . . . . 426 . 103 . . . . . 320 . 1299 Reduced by Siege Mode 139 | . . . . . . . . . . . . . . . . . . . . . . . . . . . . . . . . . 7 . 132 Redirected to Core 480 | . . . . . . . . . . . . . . . . . . . . . . . . . . . . . . . . . . . 480 Redirected to Shielding 209 | . . . . . . . . . . . . . . . . . . . 100 . . . 40 14 47 . 8 . . . . . . . . Ignored by Resistances 10 | . . . . . . . 10 . . . . . . . . . . . . . . . . . . . . . . . . . . . . Regen/Repaired (Parts) 12808 | . . . 63 . . . 61 . 39 414 48 353 . . . . 66 . 446 . . . . . . . . 844 1327 1130 2945 1557 1290 1484 741 Core Remaining (%) 65 | 100 . 86 . . . . . 65 . . . 64 . 85 . . . . . . . . 5 . . . 42 . 85 . . . 57 . . Volleys Fired 1111 | 7 16 56 8 23 4 10 24 30 11 41 12 60 2 35 3 44 15 13 79 . . . 6 4 65 1 61 51 102 34 70 43 90 50 41 Largest 4 | 2 2 2 4 4 4 3 4 4 3 4 3 3 1 1 1 1 1 1 4 . . . 3 3 3 1 3 3 4 1 2 1 4 4 4 Hottest 418 | 40 100 105 195 195 175 135 130 115 75 130 75 75 5 65 7 65 65 65 241 . . . 198 112 157 7 228 282 418 200 224 300 232 300 358 Shots Fired 2023 | 14 31 98 32 69 15 23 95 86 29 108 16 148 2 35 3 45 15 13 111 . . . 14 12 101 2 85 104 164 34 85 43 216 101 74 Gun 1043 | 14 30 84 32 69 15 20 95 81 27 98 7 129 . . . . . . 54 . . . 10 8 59 1 4 73 66 . 15 26 26 . . Cannon 721 | . . . . . . . . . . . . 10 . 19 . 20 2 2 33 . . . 4 . 34 . 55 12 67 33 70 17 188 87 68 Launcher 16 | . . . . . . 3 . 4 . . . . . . . . . . . . . . . 4 . . 2 . . . . . 2 . 1 Special 243 | . 1 14 . . . . . 1 2 10 9 9 2 16 3 25 13 11 24 . . . . . 8 1 24 19 31 1 . . . 14 5 Kinetic 1018 | 14 4 . . . 4 3 94 85 27 92 7 139 . 19 . 20 2 2 65 . . . 6 8 56 1 35 . . 8 3 . 188 85 51 Thermal 427 | . 1 14 . . . . 1 . . 6 . . . . . . . . 22 . . . 8 . 3 . 17 75 98 22 71 43 26 2 18 Explosive 8 | . . . . . . . . . . . . . . . . . . . . . . . . 4 . . 2 . . . . . 2 . . Electromagnetic 342 | . 26 84 32 69 11 20 . . . . . . . . . . . . . . . . . . 34 . 7 10 35 3 11 . . . . Robot Hit Streak 58 | 4 6 22 5 9 5 14 17 6 5 12 9 58 2 6 3 11 5 5 9 . . . 3 3 8 3 4 19 38 3 11 29 30 15 33 Robot Miss Streak 7 | 1 4 4 4 3 2 3 5 7 2 4 1 5 . 4 1 5 2 2 4 . . . 4 5 4 . 4 4 3 5 4 2 3 4 2 Penetration Max 1 | . . . . . . . . . . . . . . . . 1 . . 1 . . . . . . . . . . . . 1 . . . Secondary Targets 21 | . 1 2 . 5 . 1 2 2 2 4 . 1 . . . . . . . . . . . . . . . . 1 . . . . . . Max Gunslinging Chain 1 | . 1 1 . 1 . 1 1 1 1 1 . 1 . . . . . . . . . . . . . . . . 1 . . . . . . Shots Hit Robots 1473 | 9 20 75 18 51 8 18 47 41 19 71 13 113 2 39 2 36 10 10 89 3 . 7 7 6 73 2 39 82 132 18 66 55 156 64 72 Core Hits 658 | 4 13 40 13 35 9 12 22 28 6 28 5 44 . 10 . 3 . . 43 1 . 1 2 4 26 . 22 21 53 20 47 25 62 21 38 Critical Kills 20 | . . . . . . . 1 . . . . . . . . . . . 1 . . . . . 1 . . . 1 2 1 9 . . 4 Critical Parts Destroyed 29 | . . . . . . . . . . 1 . 1 . 2 . . . . 3 . . . . . 1 . . . . . . 11 1 . 9 Critical Strikes 115 | . . . . . . . 1 . . 1 . 1 . 7 . . . . 10 . . 1 . 1 3 . 4 9 5 5 4 20 13 9 21 Burn 13 | . . . . . . . . . . . . . . . . . . . . . . . . . . . . 9 3 . 1 . . . . Meltdown 4 | . . . . . . . . . . . . . . . . . . . . . . . . . . . . . 1 2 1 . . . . Destroy 43 | . . . . . . . 1 . . 1 . . . . . . . . 2 . . . . . 2 . . . . . . 20 1 . 16 Blast 37 | . . . . . . . . . . . . . . 4 . . . . 4 . . . . . . . 4 . . 3 . . 12 5 5 Corrupt 2 | . . . . . . . . . . . . . . . . . . . . . . . . . 1 . . . 1 . . . . . . Smash 6 | . . . . . . . . . . . . 1 . 3 . . . . 2 . . . . . . . . . . . . . . . . Sever 4 | . . . . . . . . . . . . . . . . . . . . . . . . . . . . . . . . . . 4 . Impale 6 | . . . . . . . . . . . . . . . . . . . 2 . . 1 . 1 . . . . . . 2 . . . . Melee Attacks 438 | . . 8 2 4 . 14 6 16 1 33 1 54 . 45 . 34 1 7 20 4 . 7 1 17 11 . . 5 27 10 29 26 1 39 15 Impact 218 | . . 8 2 4 . 14 6 . . 33 1 54 . 45 . 34 1 7 9 . . . . . . . . . . . . . . . . Slashing 119 | . . . . . . . . 16 1 . . . . . . . . . . . . . . . . . . . . . 21 26 1 39 15 Piercing 101 | . . . . . . . . . . . . . . . . . . . 11 4 . 7 1 17 11 . . 5 27 10 8 . . . . Sneak Attacks 37 | . . . 1 1 . . 3 . . 1 . 1 . 8 . . . . 4 . . . . . 1 . . . 3 3 . 1 1 6 3 Combat Hostiles 1 | . . . . . . . . . . . . . . . . . . . . . . . . . . . . . 1 . . . . . . Follow-up Attacks 5 | . . . . . . . . . . . . . . . . . . . . . . . . . . . . . . . 2 3 . . . Damage Inflicted 82307 | 124 336 1176 374 1238 262 709 1151 1291 312 1293 131 2439 . 1971 . 1006 18 113 2661 167 . 401 219 359 1866 . 1500 2450 7575 4644 10588 5602 7292 3531 19508 Guns 15147 | 124 276 1090 254 811 207 247 833 705 275 1043 131 1657 . . . . . . 843 . . . 133 79 768 . 149 2125 1672 . 403 701 621 . . Cannons 32965 | . . . . . . . . . . . . 262 . 635 . 750 . 61 1378 . . . 86 . 783 . 990 325 3485 1732 6442 3550 6108 1972 4406 Explosions 24945 | . 60 86 . 342 55 462 . 421 . . . . . . . . . . . . . . . 236 . . 361 . 1887 2671 3226 . 481 500 14157 Melee 9079 | . . . 120 85 . . 318 165 . 250 . 520 . 1336 . 256 . 52 407 167 . 401 . 44 315 . . . 461 241 517 1351 82 1046 945 Ramming 171 | . . . . . . . . . 37 . . . . . . . 18 . 33 . . . . . . . . . 70 . . . . 13 . Kinetic 20856 | 124 . . . . 74 437 833 1126 275 998 131 1919 . 635 . 750 . 61 1828 . . . 77 79 746 . 761 . . 256 . . 6108 1972 1666 Thermal 45320 | . 60 86 . 342 55 25 . . . 45 . . . . . . . . 393 . . . 142 . 22 . 310 2197 6102 4019 9650 4251 621 103 16897 Explosive 1195 | . . . . . . . . . . . . . . . . . . . . . . . . 236 . . 361 . . 42 75 . 481 . . Electromagnetic 5686 | . 276 1090 254 811 133 247 . . . . . . . . . . . . . . . . . . 783 . 68 253 942 86 346 . . 397 . Impact 3191 | . . . 120 85 . . 318 . . 250 . 520 . 1336 . 256 . 52 254 . . . . . . . . . . . . . . . . Slashing 4009 | . . . . . . . . 165 . . . . . . . . . . . . . . . . . . . . . . 420 1351 82 1046 945 Piercing 1879 | . . . . . . . . . . . . . . . . . . . 153 167 . 401 . 44 315 . . . 461 241 97 . . . . Highest Corruption 24 | . . . . . 8 9 9 11 . 4 4 9 . 1 . 2 2 3 6 6 6 6 15 . 22 22 22 7 24 3 14 2 4 . 6 Average Corruption 7 | . . . . . 8 8 9 10 . 3 4 7 . 1 . 1 2 2 3 6 6 6 6 . 9 22 22 5 15 2 8 2 3 . 5 Corruption Purged . | . . . . . . . . . . . . . . . . . . . . . . . . . . . . . . . . . . . . Corruption Blocked 3 | . . . . . . . . . . . . . . . . . . . . . . . . . . . . . . . . 2 1 . . Effects 569 | . . . . . 1 13 27 21 . 14 10 59 . 4 . 18 7 9 46 7 7 8 19 . 34 8 54 5 76 7 75 7 26 . 7 Message Errors 150 | . . . . . . 4 7 6 . 6 1 9 . 1 . 2 4 6 12 1 4 3 3 . 11 2 14 1 22 2 19 2 8 . . Matter Fused 130 | . . . . . . 3 8 5 . 4 6 15 . . . 7 1 2 11 4 1 1 2 . 10 . 10 1 13 2 18 2 3 . 1 Heat Flow Errors 58 | . . . . . 1 1 4 . . 1 . 8 . . . 3 . . 5 1 . 1 6 . 2 . 6 . 6 2 6 . 3 . 2 Energy Discharges 68 | . . . . . . 1 3 3 . . 2 8 . 1 . 3 . . 6 1 . 3 3 . 4 1 5 . 8 . 10 1 4 . 1 Parts Rejected 13 | . . . . . . . 1 . . . . . . . . . . . 3 . . . . . . . . 1 3 . 2 1 . . 2 Parts Fused 10 | . . . . . . . 1 1 . . . 1 . . . . 1 . . . 1 . . . . 1 1 . 1 . 1 . 1 . . Data Loss (minor) 62 | . . . . . . 2 1 2 . 2 . 11 . 2 . 1 . 1 4 . 1 . 2 . 2 2 7 1 8 . 11 . 2 . . Data Loss (major) 25 | . . . . . . 1 . 1 . . 1 1 . . . 1 1 . 3 . . . 1 . 2 . 5 1 2 1 3 . 1 . . Misfires 21 | . . . . . . 1 2 . . . . 4 . . . 1 . . 2 . . . 1 . 1 1 1 . 3 . 2 . 1 . 1 Alerts 10 | . . . . . . . . 1 . . . . . . . . . . . . . . . . . . . . 4 . 2 1 2 . . Misdirections 6 | . . . . . . . . . . . . . . . . . . . . . . . 1 . . 1 2 . 2 . . . . . . Weapon Failures 16 | . . . . . . . . 2 . 1 . 2 . . . . . . . . . . . . 2 . 3 . 4 . 1 . 1 . . Overload Shots . | . . . . . . . . . . . . . . . . . . . . . . . . . . . . . . . . . . . . Overflow Damage 8400 | . . . . . . 46 160 10 4 57 . 268 . 183 . 84 . 3 324 . . 80 . 35 11 . 72 . 1082 767 1457 864 282 205 2406 Projectiles 4245 | . . . . . . . . . . . . 8 . 23 . 54 . 1 164 . . . . . 11 . 72 . 719 331 819 728 222 118 975 Explosions 2886 | . . . . . . 46 . 5 . . . . . . . . . . . . . . . 17 . . . . 279 432 584 . 60 32 1431 Melee 1269 | . . . . . . . 160 5 4 57 . 260 . 160 . 30 . 2 160 . . 80 . 18 . . . . 84 4 54 136 . 55 . Knockbacks 89 | . . . . . . . 1 . . 2 . 3 . 5 . 8 1 1 11 . . . . . . . 3 . . 1 . . 20 20 13 Impact 14 | . . . . . . . 1 . . 2 . 2 . 4 . 3 1 . . . . . . . . . . . . . . . . 1 . Kinetic 64 | . . . . . . . . . . . . . . 1 . 5 . 1 8 . . . . . . . 3 . . 1 . . 16 17 12 Secondary 11 | . . . . . . . . . . . . 1 . . . . . . 3 . . . . . . . . . . . . . 4 2 1 Self-Inflicted Damage 1105 | . . . . . 11 12 . . . . . . . . . . . . . . . . . . . . . . 199 . . . 53 . 830 Shots 7 | . . . . . 1 1 . . . . . . . . . . . . . . . . . . . . . . 3 . . . 1 . 1 Rammed 11 | . . . . . . . . . . . . . . . . . 1 . 9 . . . . . . . . . . . . . . 1 . Targets Rammed 26 | . . . . . . . . . 10 . . . . . . . 1 . 10 . . . . . . . . . 4 . . . . 1 . Kicked 14 | . . . . . . . . . 10 . . . . . . . . . . . . . . . . . . . 4 . . . . . . Crushed 1 | . . . . . . . . . . . . . . . . . . . 1 . . . . . . . . . . . . . . . . Highest Temperature 445 | . 178 279 395 266 318 204 428 213 193 332 20 266 . 20 . 177 . 2 206 140 . 115 389 149 298 1 224 316 188 417 445 292 103 . 350 Average Temperature 93 | . 64 112 159 76 97 43 109 73 73 106 15 66 . 9 . 84 . 1 54 74 . 65 156 83 82 1 66 112 65 176 115 157 67 . 80 Received Heat Transfer 4741 | . 12 517 144 54 9 63 90 174 63 195 36 249 . 111 . 56 . 36 246 . 9 . 42 147 134 . 35 84 211 697 734 207 251 63 72 Effects 13 | . . . . . . . 1 . . . . . . . . . . . 1 . . . 1 . 3 . . . . 3 2 . . . 2 Shutdowns 4 | . . . . . . . 1 . . . . . . . . . . . . . . . . . . . . . . 2 . . . . 1 Energy Bleed 3 | . . . . . . . . . . . . . . . . . . . . . . . 1 . . . . . . . 1 . . . 1 Interference 5 | . . . . . . . . . . . . . . . . . . . 1 . . . . . 3 . . . . 1 . . . . . Damage (minor) 1 | . . . . . . . . . . . . . . . . . . . . . . . . . . . . . . . 1 . . . . Siege Activations 6 | . . . . . . . . . . . . . . . . . . . . . . . . . . . . . . . 1 . 2 2 1 Total Turns 66 | . . . . . . . . . . . . . . . . . . . . . . . . . . . . . . . 1 . 19 6 40 Longest Duration 40 | . . . . . . . . . . . . . . . . . . . . . . . . . . . . . . . 1 . 14 4 40 Martial Activations . | . . . . . . . . . . . . . . . . . . . . . . . . . . . . . . . . . . . . Shielding Activations . | . . . . . . . . . . . . . . . . . . . . . . . . . . . . . . . . . . . . Robots Disrupted 2 | . . . . . . . . . . . . . . . . . . . . . . . . . 1 . . . . 1 . . . . . Combat Hostiles 2 | . . . . . . . . . . . . . . . . . . . . . . . . . 1 . . . . 1 . . . . . Robots Corrupted 25 | . . 1 . 1 . . 1 . 1 1 . 2 . 3 . 1 . 1 1 . . . . . 3 . . 1 4 . 3 . . 1 . Combat Hostiles 19 | . . 1 . 1 . . . . 1 1 . 2 . 1 . . . 1 . . . . . . 3 . . 1 4 . 3 . . . . Parts Fried 72 | . . 14 3 3 1 1 3 . . 1 . 4 . 8 . 2 . 1 6 . . . . . 4 . 1 2 7 . 6 . . 5 . Impact Corruptions 30 | . . . . . . . 3 . 1 2 . 12 . 5 . 2 . 1 3 . . . . . . . . . . . . . . 1 . Robots Melted 17 | . . . . . . . . . . . . . . . . . . . . . . . . . . . . 3 5 3 6 . . . . Combat Hostiles 12 | . . . . . . . . . . . . . . . . . . . . . . . . . . . . 3 3 3 3 . . . . Parts Melted 63 | . . 1 . . . . . . . 1 . 2 . . . . . . . . . . . . . . 1 23 15 5 11 2 2 . . Heat Transferred 20916 | . 100 50 . 300 50 50 . . . 54 . . . . . . . . 821 . . . 174 . 50 . 296 3108 5043 2855 5505 962 888 100 510 Parts Sabotaged 2 | . . . . . . . . . . . . . . . . . . . . . . . . . . . . . . . . . . 2 . Parts Stolen . | . . . . . . . . . . . . . . . . . . . . . . . . . . . . . . . . . . . . Parts Stripped . | . . . . . . . . . . . . . . . . . . . . . . . . . . . . . . . . . . . . Power Chain Reactions 11 | . 1 2 . 5 1 1 . . . . . . . . . . . . . . . . . . . . . . 1 . . . . . . Alert | -11 -10 -10 -8 -8 -8 -8 -8 -8 -7 -7 -7 -7 -6 -6 -5 -5 -5 -5 -5 -5 -5 -5 -4 -4 -4 -4 -4 -3 -3 -2 -2 -2 -2 -1 -1 ------- Run | Yrd Mat Sub Mat Gar Mat Gar Mat Gar Fac Gar Fac Gar Fac Gar Fac Gar Fac Gar Fac Upp Upp Zhi Pro Fac Gar Fac Gar Res Tes Res Qua Sec Gar Acc Com Maximum Alert Level 5 | . . . . 2 2 2 1 2 1 4 2 5 4 5 4 5 3 4 4 . . . . . 2 1 4 3 4 4 5 4 5 5 5 Low Security (%) 12 | 100 100 . 100 65 9 . 33 24 . 2 . . . . . . . . . . . . . 100 13 . 2 . . . . . . . . Level 1 12 | . . . . 26 67 37 66 27 100 29 . 4 . . . . . . . . . . . . 15 100 17 . 75 . . . . . . Level 2 16 | . . . . 8 22 62 . 47 . 46 100 31 . . . . . . 2 . . . . . 71 . 19 63 9 45 1 . . . . Level 3 16 | . . . . . . . . . . 15 . 3 16 2 . 19 100 49 33 . . . . . . . 50 36 11 32 17 39 13 . . Level 4 24 | . . . . . . . . . . 5 . 23 83 36 100 28 . 50 64 . . . . . . . 10 . 3 21 34 60 45 30 99 Level 5 16 | . . . . . . . . . . . . 36 . 60 . 51 . . . . . . . . . . . . . . 46 . 40 45 . High Security . | . . . . . . . . . . . . . . . . . . . . . . . . . . . . . . . . . . 23 . Max Security . | . . . . . . . . . . . . . . . . . . . . . . . . . . . . . . . . . . . . Peak Influence 2708 | 10 125 . 136 439 446 529 320 562 294 1136 596 2207 1158 2670 1401 1868 1016 1513 1500 . . . . 192 591 310 1159 790 1120 1152 1810 1343 2127 2094 2708 Initial 1401 | . . . 116 . 213 289 257 78 294 182 596 362 1158 761 1401 913 980 705 793 . . . . 23 119 310 175 651 402 627 625 984 987 1276 1330 Average 941 | 2 31 . 38 220 269 430 225 347 259 566 526 1259 1126 1827 1357 1468 933 1161 1133 . . . . 19 397 281 784 679 424 777 1475 1127 1494 1727 1320 Influence Increases 26346 | 15 263 400 142 479 283 260 505 544 106 1034 144 2055 . 2069 14 1285 627 1098 2221 . . 15 90 292 682 . 1304 816 1638 865 1940 611 1180 1383 1986 Destroy 0b10 Robot/C 10520 | . 160 180 80 320 160 120 260 320 80 560 40 700 . 620 . 400 240 460 640 . . . 20 40 320 . 540 420 800 260 720 300 640 640 480 Destroy 0b10 Robot/NC 600 | 15 10 . 5 5 10 . 55 . . . 15 30 . 15 5 10 15 . 100 . . 15 . . 5 . 5 35 45 45 45 15 10 40 50 Destroy Leader 1364 | . 32 10 30 20 32 10 80 40 20 50 12 50 . 30 2 30 50 30 122 . . . 10 10 50 . 60 82 92 50 130 50 60 80 40 Allied During Kill 4130 | . . . . . 33 . 77 5 6 208 42 573 . 586 7 440 305 490 414 . . . . . . . 246 267 115 . . . . 305 11 Successful Hack 521 | . 27 . 26 22 . . 27 . . 16 34 23 . 21 . 12 5 . 80 . . . . 15 17 . 26 . 14 33 85 24 14 . . Disable Machine 855 | . . . . . 45 . . 15 . . . . . . . 15 . . 105 . . . . 15 15 . 15 . 135 30 240 75 . 45 105 Anti-Garrison Action 2900 | . . . . 50 . 50 . 100 . 150 . 550 . 700 . 300 . 100 150 . . . . . 150 . 300 . . . . . 300 . . Destroy Structure 4016 | . 4 . 1 47 3 50 6 34 . 50 1 129 . 52 . 63 12 18 100 . . . . 92 5 . 112 12 332 432 660 147 156 243 1255 Partial Spotted 30 | . 15 . . . . . . . . . . . . . . . . . 15 . . . . . . . . . . . . . . . . Lose Combat Pursuer 1410 | . 15 210 . 15 . 30 . 30 . . . . . 45 . 15 . . 495 . . . 60 120 120 . . . 105 15 60 . . 30 45 Influence Decreases 23648 | 15 226 213 366 40 276 177 914 102 408 158 762 366 1119 487 1379 722 1487 593 2414 579 272 484 53 158 262 341 395 1260 1237 869 1301 1045 370 1431 1367 Entered New Map 12829 | . . 18 108 . 226 157 272 42 268 78 540 156 1049 327 1269 392 888 303 720 489 142 469 . 14 52 281 75 508 313 489 487 767 330 851 749 Time Decay 5775 | 15 216 195 258 . 30 . 342 . 130 . 222 . 70 . 110 . 214 . 624 90 130 15 24 124 . 60 . 422 574 380 664 238 . 350 278 Lost Part 1240 | . . . . 10 20 20 . 20 10 10 . 40 . 20 . 20 . . 190 . . . 20 20 210 . 50 40 50 . 150 40 40 40 220 Lost Ally 2929 | . 10 . . 30 . . . 40 . 70 . 170 . 140 . 310 110 290 580 . . . 9 . . . 270 290 300 . . . . 190 120 Purge Threat 875 | . . . . . . . 300 . . . . . . . . . 275 . 300 . . . . . . . . . . . . . . . . Squads Dispatched 78 | . . . 2 . 1 . . . . . . . . . . . 5 . 25 . 1 . . 2 . . . 4 9 3 4 3 . 16 3 Investigation 5 | . . . 1 . . . . . . . . . . . . . . . 3 . . . . . . . . . . . . . . 1 . Extermination 16 | . . . . . . . . . . . . . . . . . 1 . 4 . . . . 1 . . . 2 4 1 1 . . 1 1 Reinforcement 25 | . . . 1 . . . . . . . . . . . . . 1 . 10 . . . . 1 . . . 1 3 1 2 2 . 2 1 Assault 27 | . . . . . . . . . . . . . . . . . 1 . 7 . 1 . . . . . . 1 2 1 1 1 . 11 1 Garrison 4 | . . . . . 1 . . . . . . . . . . . 2 . 1 . . . . . . . . . . . . . . . . Intercept 1 | . . . . . . . . . . . . . . . . . . . . . . . . . . . . . . . . . . 1 . Searches Triggered . | . . . . . . . . . . . . . . . . . . . . . . . . . . . . . . . . . . . . Construction Impeded 3 | . . . . . . . . . . . . . . . . . 1 . 1 . . . . . . . . . . 1 . . . . . Haulers Reinforced 2 | . . . . . . . . . . . . . . . . . . . 1 . . . . . . . . 1 . . . . . . . Active Scanning Responses . | . . . . . . . . . . . . . . . . . . . . . . . . . . . . . . . . . . . . Cargo Convoy Interrupts 1 | . . . . . . . . . . . . . . . . . . . 1 . . . . . . . . . . . . . . . . Stealth | -11 -10 -10 -8 -8 -8 -8 -8 -8 -7 -7 -7 -7 -6 -6 -5 -5 -5 -5 -5 -5 -5 -5 -4 -4 -4 -4 -4 -3 -3 -2 -2 -2 -2 -1 -1 --------- Run | Yrd Mat Sub Mat Gar Mat Gar Mat Gar Fac Gar Fac Gar Fac Gar Fac Gar Fac Gar Fac Upp Upp Zhi Pro Fac Gar Fac Gar Res Tes Res Qua Sec Gar Acc Com Distress Signals 17 | . 2 . 2 . 1 . 2 . . . . . . . . . . . 4 . . . . . . . . 1 . . 1 2 . 1 1 Communications Jammed 411 | . . . . . . . . . . . . . . . . 52 . . . . . . . . . . . 89 59 45 2 . . 164 . Distress Signals 410 | . . . . . . . . . . . . . . . . 52 . . . . . . . . . . . 88 59 45 2 . . 164 . Times Spotted 790 | . 14 24 6 16 6 6 18 16 5 33 7 36 . 34 2 38 10 18 95 . 1 . 9 11 26 1 43 34 68 29 44 21 31 59 29 Peak Tracking Total 12 | . 4 3 2 5 5 5 4 7 3 4 3 9 . 6 1 9 4 3 12 . 1 . 7 7 5 1 8 5 6 6 5 4 4 8 7 Tactical Retreats 48 | . 1 2 . 1 . 1 . 1 . . . . . 2 . 1 . . 15 . . . 2 4 6 . . . 4 1 4 . . 1 2 Traps | -11 -10 -10 -8 -8 -8 -8 -8 -8 -7 -7 -7 -7 -6 -6 -5 -5 -5 -5 -5 -5 -5 -5 -4 -4 -4 -4 -4 -3 -3 -2 -2 -2 -2 -1 -1 ------- Run | Yrd Mat Sub Mat Gar Mat Gar Mat Gar Fac Gar Fac Gar Fac Gar Fac Gar Fac Gar Fac Upp Upp Zhi Pro Fac Gar Fac Gar Res Tes Res Qua Sec Gar Acc Com Traps Triggered 41 | . . . . . . 1 . . . . . 2 . 5 . 8 . 1 3 . . . . . 1 1 5 1 3 2 4 . 4 . . Indirectly . | . . . . . . . . . . . . . . . . . . . . . . . . . . . . . . . . . . . . Trap Hack Attempts . | . . . . . . . . . . . . . . . . . . . . . . . . . . . . . . . . . . . . Triggered . | . . . . . . . . . . . . . . . . . . . . . . . . . . . . . . . . . . . . Disarmed . | . . . . . . . . . . . . . . . . . . . . . . . . . . . . . . . . . . . . Reprogrammed . | . . . . . . . . . . . . . . . . . . . . . . . . . . . . . . . . . . . . Reused . | . . . . . . . . . . . . . . . . . . . . . . . . . . . . . . . . . . . . Traps Extracted . | . . . . . . . . . . . . . . . . . . . . . . . . . . . . . . . . . . . . Installed . | . . . . . . . . . . . . . . . . . . . . . . . . . . . . . . . . . . . . Triggered . | . . . . . . . . . . . . . . . . . . . . . . . . . . . . . . . . . . . . Machines | -11 -10 -10 -8 -8 -8 -8 -8 -8 -7 -7 -7 -7 -6 -6 -5 -5 -5 -5 -5 -5 -5 -5 -4 -4 -4 -4 -4 -3 -3 -2 -2 -2 -2 -1 -1 ---------- Run | Yrd Mat Sub Mat Gar Mat Gar Mat Gar Fac Gar Fac Gar Fac Gar Fac Gar Fac Gar Fac Upp Upp Zhi Pro Fac Gar Fac Gar Res Tes Res Qua Sec Gar Acc Com Machines Disabled 99 | . . 2 . 2 3 1 . 3 . 3 . 8 . 4 . 5 . 2 8 . . . . 1 4 . 8 . 9 2 16 5 3 3 7 Max in Single Turn 2 | . . 1 . 1 1 1 . 1 . 1 . 2 . 1 . 1 . 1 1 . . . . 1 1 . 1 . 1 1 1 2 1 1 2 Garrison Access 5 | . . . . . . . . . . . 1 . . . . . . . 1 . . . . . . . . 1 . 1 1 . . . . Garrison Relay 33 | . . . . 1 . 1 . 2 . 3 . 5 . 3 . 4 . 2 . . . . . . 2 . 6 . . . . . 4 . . Phase Generator 1 | . . . . . . . . . . . . 1 . . . . . . . . . . . . . . . . . . . . . . . Energy Cycler 1 | . . . . . . . . . . . . . . . . . . . . . . . . . . . . . . . . . . 1 . Machines Repaired . | . . . . . . . . . . . . . . . . . . . . . . . . . . . . . . . . . . . . Machines Dismantled . | . . . . . . . . . . . . . . . . . . . . . . . . . . . . . . . . . . . . Machines Sabotaged . | . . . . . . . . . . . . . . . . . . . . . . . . . . . . . . . . . . . . Overloaded Fab Kills . | . . . . . . . . . . . . . . . . . . . . . . . . . . . . . . . . . . . . Hacking | -11 -10 -10 -8 -8 -8 -8 -8 -8 -7 -7 -7 -7 -6 -6 -5 -5 -5 -5 -5 -5 -5 -5 -4 -4 -4 -4 -4 -3 -3 -2 -2 -2 -2 -1 -1 --------- Run | Yrd Mat Sub Mat Gar Mat Gar Mat Gar Fac Gar Fac Gar Fac Gar Fac Gar Fac Gar Fac Upp Upp Zhi Pro Fac Gar Fac Gar Res Tes Res Qua Sec Gar Acc Com Machines Accessed 118 | . 7 2 7 3 1 1 11 1 1 3 7 3 1 3 1 1 4 1 14 . . 4 . 5 2 1 2 8 5 4 9 3 2 . 1 Terminals 80 | . 7 . 5 3 . 1 8 1 . 3 3 3 . 3 . 1 3 1 9 . . . . 3 2 . 2 6 5 1 7 1 2 . . Fabricators 2 | . . . . . . . . . . . 1 . . . . . . . 1 . . . . . . . . . . . . . . . . Repair Stations 9 | . . . 1 . . . 1 . . . 1 . . . . . . . 2 . . . . 1 . . . 1 . 1 . . . . 1 Recycling Units . | . . . . . . . . . . . . . . . . . . . . . . . . . . . . . . . . . . . . Scanalyzers 5 | . . . . . . . 1 . . . . . . . . . . . 1 . . . . . . . . . . 1 1 1 . . . Garrison Access 16 | . . . 1 . 1 . 1 . 1 . 2 . 1 . 1 . 1 . 1 . . . . 1 . 1 . 1 . 1 1 1 . . . Total Hacks 281 | . 25 4 21 9 1 1 31 1 2 8 12 6 2 6 2 2 9 2 40 . . 17 . 9 7 3 4 15 7 7 19 4 3 . 2 Successful 163 | . 13 4 14 3 1 1 17 1 1 3 7 2 1 2 1 1 6 1 24 . . 17 . 4 3 1 2 7 2 6 14 3 1 . . Failed 115 | . 11 . 7 6 . . 14 . 1 5 5 4 1 4 1 1 3 1 15 . . . . 5 4 2 2 8 5 . 5 1 2 . 2 Catastrophic 20 | . 1 . . 1 . . 3 . 1 1 2 1 1 1 . . . . 3 . . . . 1 1 1 2 . . . . . . . . Database Lockouts 3 | . 1 . . . . . . . . . . . . . . . . . 1 . . . . . . . . . . 1 . . . . . Manual 128 | . 18 . 13 2 . . 19 . 1 2 2 . 1 2 1 . 7 1 18 . . . . 5 3 2 1 13 4 1 8 2 . . 2 Terminals 200 | . 25 . 17 9 . 1 25 1 . 8 6 6 . 6 . 2 7 2 27 . . . . 7 7 . 4 13 7 1 14 2 3 . . Fabricators 4 | . . . . . . . . . . . 1 . . . . . . . 3 . . . . . . . . . . . . . . . . Repair Stations 18 | . . . 2 . . . 2 . . . 2 . . . . . . . 6 . . . . 1 . . . 1 . 2 . . . . 2 Recycling Units . | . . . . . . . . . . . . . . . . . . . . . . . . . . . . . . . . . . . . Scanalyzers 12 | . . . . . . . 2 . . . . . . . . . . . 2 . . . . . . . . . . 3 4 1 . . . Garrison Access 26 | . . . 2 . 1 . 2 . 2 . 3 . 2 . 2 . 2 . 2 . . . . 1 . 3 . 1 . 1 1 1 . . . Terminal Hacks 77 | . 4 4 5 2 . 1 7 1 . 2 1 2 . 2 . 1 2 1 8 . . 17 . 2 2 . 2 3 1 1 5 . 1 . . Record 9 | . . 3 1 . . . . . . . . . . . . . . . . . . 5 . . . . . . . . . . . . . Part Schematic 4 | . . . . . . . . . . . . . . . . . . . . . . 4 . . . . . . . . . . . . . Robot Analysis 7 | . 2 . . . . . . . . . . . . . . . . . . . . 4 . . . . . . . . 1 . . . . Prototype ID Bank 12 | . . . 1 . . . 3 . . . . . . . . . . . 2 . . 4 . . . . . . . . 2 . . . . Open Door 6 | . . . . . . . . . . 1 . 1 . 1 . . . . . . . . . . 1 . . . 1 . 1 . . . . Branch Access Points 3 | . 1 . . . . . . . . . . . . . . . . . . . . . . . . . . 1 . 1 . . . . . Emergency Access Points 5 | . . . . 1 . . . . . . . . . 1 . 1 . . . . . . . . . . 1 . . . . . 1 . . Terminal Index 1 | . . . 1 . . . . . . . . . . . . . . . . . . . . . . . . . . . . . . . . Unreport Threat 4 | . . . . . . . 2 . . . . . . . . . . . 2 . . . . . . . . . . . . . . . . Locate Traps 5 | . . . . . . . . . . . 1 . . . . . 1 . . . . . . 1 . . . 1 . . 1 . . . . Registered Components 2 | . . . 1 . . . 1 . . . . . . . . . . . . . . . . . . . . . . . . . . . . Zone Layout 10 | . 1 . 1 . . . 1 . . . . . . . . . 1 . 4 . . . . 1 . . . 1 . . . . . . . Garrison Registry 4 | . . . . 1 . 1 . 1 . . . . . . . . . . . . . . . . 1 . . . . . . . . . . Patrol Navigation 1 | . . . . . . . . . . . . . . . . . . 1 . . . . . . . . . . . . . . . . . Security Stations 3 | . . . . . . . . . . 1 . 1 . . . . . . . . . . . . . . 1 . . . . . . . . Proto ID Catalog 1 | . . 1 . . . . . . . . . . . . . . . . . . . . . . . . . . . . . . . . . Fabricator Hacks 2 | . . . . . . . . . . . 1 . . . . . . . 1 . . . . . . . . . . . . . . . . Network Status 2 | . . . . . . . . . . . 1 . . . . . . . 1 . . . . . . . . . . . . . . . . Repair Station Hacks 9 | . . . 2 . . . 2 . . . 2 . . . . . . . 1 . . . . . . . . . . 2 . . . . . Scan Component 5 | . . . 1 . . . 1 . . . 1 . . . . . . . 1 . . . . . . . . . . 1 . . . . . Repair 4 | . . . 1 . . . 1 . . . 1 . . . . . . . . . . . . . . . . . . 1 . . . . . Recycling Unit Hacks . | . . . . . . . . . . . . . . . . . . . . . . . . . . . . . . . . . . . . Scanalyzer 6 | . . . . . . . . . . . . . . . . . . . 1 . . . . . . . . . . 2 2 1 . . . Retrieve Study 6 | . . . . . . . . . . . . . . . . . . . 1 . . . . . . . . . . 2 2 1 . . . Garrison Access Hacks 16 | . . . 1 . 1 . 1 . 1 . 2 . 1 . 1 . 1 . 1 . . . . 1 . 1 . 1 . 1 1 1 . . . Unlock Access 12 | . . . 1 . 1 . 1 . 1 . 1 . 1 . 1 . 1 . 1 . . . . 1 . 1 . . . . . 1 . . . Seal Access 4 | . . . . . . . . . . . 1 . . . . . . . . . . . . . . . . 1 . 1 1 . . . . Unauthorized Hacks 53 | . 9 . 6 1 . . 7 . . 1 1 . . . . . 3 . 12 . . . . 1 1 . . 3 1 . 6 1 . . . Terminals 48 | . 9 . 6 1 . . 7 . . 1 1 . . . . . 3 . 7 . . . . 1 1 . . 3 1 . 6 1 . . . Track 1 | . . . . . . . . . . . . . . . . . . . 1 . . . . . . . . . . . . . . . . Assimilate 4 | . 2 . . . . . . . . . . . . . . . . . 2 . . . . . . . . . . . . . . . . Botnet 19 | . 2 . 1 1 . . 2 . . 1 1 . . . . . 2 . 3 . . . . 1 1 . . 2 1 . 1 . . . . Disrupt 2 | . . . . . . . . . . . . . . . . . 1 . 1 . . . . . . . . . . . . . . . . Skim 22 | . 5 . 5 . . . 5 . . . . . . . . . . . . . . . . . . . . 1 . . 5 1 . . . Fabricators 2 | . . . . . . . . . . . . . . . . . . . 2 . . . . . . . . . . . . . . . . Liberate 1 | . . . . . . . . . . . . . . . . . . . 1 . . . . . . . . . . . . . . . . Fabnet 1 | . . . . . . . . . . . . . . . . . . . 1 . . . . . . . . . . . . . . . . Repair Stations 2 | . . . . . . . . . . . . . . . . . . . 2 . . . . . . . . . . . . . . . . Patch 2 | . . . . . . . . . . . . . . . . . . . 2 . . . . . . . . . . . . . . . . Recycling Units . | . . . . . . . . . . . . . . . . . . . . . . . . . . . . . . . . . . . . Scanalyzers . | . . . . . . . . . . . . . . . . . . . . . . . . . . . . . . . . . . . . Garrison Access 1 | . . . . . . . . . . . . . . . . . . . 1 . . . . . . . . . . . . . . . . Reprogram 1 | . . . . . . . . . . . . . . . . . . . 1 . . . . . . . . . . . . . . . . Data Cores Recovered 4 | . . . 1 . . . . . . . . . . . . . 1 . . . . . . . . . . 1 . 1 . . . . . Used . | . . . . . . . . . . . . . . . . . . . . . . . . . . . . . . . . . . . . Hacking Detections 92 | . 7 . 7 3 . 1 10 1 1 2 5 3 1 1 1 1 2 1 12 . . . . 4 2 1 2 7 4 1 6 3 2 . 1 Full Trace Events 4 | . . . . . . . . . . . . 1 . 1 . . . . . . . . . . 1 . . . . . . . 1 . . Feedback Events 1 | . . . . . . . . . . . . 1 . . . . . . . . . . . . . . . . . . . . . . . Corruption 1 | . . . . . . . . . . . . 1 . . . . . . . . . . . . . . . . . . . . . . . Feedback Blocked . | . . . . . . . . . . . . . . . . . . . . . . . . . . . . . . . . . . . . Robot Schematics Acquired 5 | . . . . . . . . . . . . . . . . . . . . . . . . . . . . . 4 . 1 . . . . Robots Built . | . . . . . . . . . . . . . . . . . . . . . . . . . . . . . . . . . . . . Authchips . | . . . . . . . . . . . . . . . . . . . . . . . . . . . . . . . . . . . . Time . | . . . . . . . . . . . . . . . . . . . . . . . . . . . . . . . . . . . . Total Robot Build Rating . | . . . . . . . . . . . . . . . . . . . . . . . . . . . . . . . . . . . . Part Schematics Acquired 25 | . . . . . . . . . . . . . . . . . . . . . . 4 . . . . . . 10 . 7 4 . . . Parts Built . | . . . . . . . . . . . . . . . . . . . . . . . . . . . . . . . . . . . . Authchips . | . . . . . . . . . . . . . . . . . . . . . . . . . . . . . . . . . . . . Time . | . . . . . . . . . . . . . . . . . . . . . . . . . . . . . . . . . . . . Total Part Build Rating . | . . . . . . . . . . . . . . . . . . . . . . . . . . . . . . . . . . . . Part Studies Acquired 6 | . . . . . . . . . . . . . . . . . . . 1 . . . . . . . . . . 2 2 1 . . . Parts Repaired 4 | . . . 1 . . . 1 . . . 1 . . . . . . . . . . . . . . . . . . 1 . . . . . Time 133 | . . . 51 . . . 26 . . . 19 . . . . . . . . . . . . . . . . . . 37 . . . . . Parts Recycled . | . . . . . . . . . . . . . . . . . . . . . . . . . . . . . . . . . . . . Recycled Matter . | . . . . . . . . . . . . . . . . . . . . . . . . . . . . . . . . . . . . Retrieved Matter . | . . . . . . . . . . . . . . . . . . . . . . . . . . . . . . . . . . . . Retrieved Components . | . . . . . . . . . . . . . . . . . . . . . . . . . . . . . . . . . . . . Parts Scanalyzed . | . . . . . . . . . . . . . . . . . . . . . . . . . . . . . . . . . . . . Part Schematics Acquired . | . . . . . . . . . . . . . . . . . . . . . . . . . . . . . . . . . . . . Parts Damaged . | . . . . . . . . . . . . . . . . . . . . . . . . . . . . . . . . . . . . Bothacking | -11 -10 -10 -8 -8 -8 -8 -8 -8 -7 -7 -7 -7 -6 -6 -5 -5 -5 -5 -5 -5 -5 -5 -4 -4 -4 -4 -4 -3 -3 -2 -2 -2 -2 -1 -1 ------------ Run | Yrd Mat Sub Mat Gar Mat Gar Mat Gar Fac Gar Fac Gar Fac Gar Fac Gar Fac Gar Fac Upp Upp Zhi Pro Fac Gar Fac Gar Res Tes Res Qua Sec Gar Acc Com Used RIF Installer 15 | . . . . 1 . 2 . 2 . 1 . 1 . 1 . 1 . 2 . . . . . . 1 . 1 . . . . . 2 . . Hotswap 1 | . . . . . . . . . . 1 . . . . . . . . . . . . . . . . . . . . . . . . . Code Merge 1 | . . . . . . . . 1 . . . . . . . . . . . . . . . . . . . . . . . . . . . Command Fork 2 | . . . . . . 2 . . . . . . . . . . . . . . . . . . . . . . . . . . . . . Signal Jammer 1 | . . . . . . . . 1 . . . . . . . . . . . . . . . . . . . . . . . . . . . Zone Cloak 2 | . . . . . . . . . . . . . . . . . . . . . . . . . . . 1 . . . . . 1 . . Watcher Feeds 1 | . . . . . . . . . . . . . . . . . . . . . . . . . 1 . . . . . . . . . . Patrol Navigation 1 | . . . . . . . . . . . . 1 . . . . . . . . . . . . . . . . . . . . . . . Structural Interface 1 | . . . . . . . . . . . . . . 1 . . . . . . . . . . . . . . . . . . . . . Program Shield 1 | . . . . . . . . . . . . . . . . 1 . . . . . . . . . . . . . . . . . . . Autooverride 1 | . . . . . . . . . . . . . . . . . . 1 . . . . . . . . . . . . . . . . . Autoassimilate 1 | . . . . . . . . . . . . . . . . . . . . . . . . . . . . . . . . . 1 . . Crosswire 1 | . . . . . . . . . . . . . . . . . . 1 . . . . . . . . . . . . . . . . . Robots Hacked 154 | . . . . . . . . 1 1 6 6 7 1 9 1 15 5 8 19 . . . 1 . 2 1 17 13 21 1 1 . . 11 7 Non-combat 24 | . . . . . . . . . 1 . 3 . 1 . 1 1 3 . 2 . . . . . . 1 . 4 5 . . . . 2 . Combat 130 | . . . . . . . . 1 . 6 3 7 . 9 . 14 2 8 17 . . . 1 . 2 . 17 9 16 1 1 . . 9 7 Autooverrided 17 | . . . . . . . . . . . . . . . . . . . 5 . . . . . . . 4 2 3 . 1 . . 1 1 Autoassimilated 4 | . . . . . . . . . . . . . . . . . . . . . . . . . . . . . . . . . . 2 2 Robot Hacks Applied 143 | . . . . . . . . 1 1 6 6 7 1 9 1 15 8 8 15 . . . . . 2 1 14 14 20 1 . . . 9 4 parse_system 7 | . . . . . . . . . . . . . . 1 . . . . 1 . . . . . . . 2 1 1 . . . . 1 . hold_bot 1 | . . . . . . . . . . . . . . . . . . . . . . . . . . . . 1 . . . . . . . ignore_repairs 1 | . . . . . . . . . . . . . . . . . . . . . . . . . . . . . 1 . . . . . . map_walls 2 | . . . . . . . . . . . 1 . . . . . 1 . . . . . . . . . . . . . . . . . . drop_inventory 4 | . . . . . . . . . . . 1 . . . . . . . . . . . . . . . . 1 2 . . . . . . purge_threat 2 | . . . . . . . . . . . . . . . . . 2 . . . . . . . . . . . . . . . . . . block_reporting 1 | . . . . . . . . . . . . . . . . . 1 . . . . . . . . . . . . . . . . . . map_route 3 | . . . . . . . . . . . . . . . . . . . . . . . . . . . . 2 1 . . . . . . mark_security 1 | . . . . . . . . . . . . . . . . . . . . . . . . . . . . 1 . . . . . . . redirect_shields 1 | . . . . . . . . . . . . . . . . 1 . . . . . . . . . . . . . . . . . . . disable_scanner 1 | . . . . . . . . . . . . . . . . . . . . . . . . . . . . . 1 . . . . . . locate_prototypes 2 | . . . . . . . . . . . . . . . . . . . . . . . . . . . . . 2 . . . . . . amplify_resonance 6 | . . . . . . . . . . . . . . 2 . . . . 2 . . . . . . . 1 . . . . . . . 1 reboot_system 5 | . . . . . . . . . . . . . . 1 . . . 1 1 . . . . . . . . . . . . . . 2 . overwrite_iff 13 | . . . . . . . . . . . . . . 2 . 3 . . 1 . . . . . . . 4 1 . 1 . . . 1 . streamctrl_low 1 | . . . . . . . . . . . . . . . . . . . 1 . . . . . . . . . . . . . . . . formatsys_low 15 | . . . . . . . . . 1 . 1 . 1 . . . 2 . . . . . . . . 1 . 1 6 . . . . 2 . formatsys_high 77 | . . . . . . . . 1 . 6 3 7 . 3 1 11 2 7 9 . . . . . 2 . 7 6 6 . . . . 3 3 Relay Couplers Released 137 | . . . . 3 . 3 . 12 . 14 . 17 . 12 . 18 . 9 1 . . . . . 7 . 25 . . . . . 16 . . Machine Destruction 134 | . . . . 3 . 3 . 9 . 14 . 17 . 12 . 18 . 9 1 . . . . . 7 . 25 . . . . . 16 . . Programmers 3 | . . . . . . . . 3 . . . . . . . . . . . . . . . . . . . . . . . . . . . Attached 43 | . . . . . . . . 2 . 6 . 6 . 3 . 6 . 1 6 . . . . . 3 1 3 1 1 1 . . 1 2 . Crosswired 25 | . . . . . . . . . . . . . . . . . . 4 . . . . . . 3 . 10 . . . . . 8 . . Merged Code Value 387 | . . . . . . . . 12 . 93 . 12 . 22 . 83 . 41 . . . . . . . . 92 . . . . . 32 . . Fabnet Peak Effective % 3 | . . . . . . . . . . . . . . . . . . . . . . . 3 3 3 3 3 1 1 . . . . . . Autooverrided 2 | . . . . . . . . . . . . . . . . . . . . . . . 1 . . . 1 . . . . . . . . Robots Rewired 35 | . . . . 6 . 3 . . . 2 . 3 . 10 . 9 . . . . . . . . 2 . . . . . . . . . . Allies Hacked 3 | . . . . . . . . . . 2 . . . . . . . . . . . . . . . . . . 1 . . . . . . Hacks Repelled . | . . . . . . . . . . . . . . . . . . . . . . . . . . . . . . . . . . . . Allies | -11 -10 -10 -8 -8 -8 -8 -8 -8 -7 -7 -7 -7 -6 -6 -5 -5 -5 -5 -5 -5 -5 -5 -4 -4 -4 -4 -4 -3 -3 -2 -2 -2 -2 -1 -1 -------- Run | Yrd Mat Sub Mat Gar Mat Gar Mat Gar Fac Gar Fac Gar Fac Gar Fac Gar Fac Gar Fac Upp Upp Zhi Pro Fac Gar Fac Gar Res Tes Res Qua Sec Gar Acc Com Total Allies 221 | . 2 . . 6 . 3 . 1 2 11 4 13 2 16 1 33 6 10 24 . . . 1 . 6 2 19 13 23 1 1 . . 14 7 Largest Group 32 | . 2 1 1 4 3 1 3 2 3 9 12 15 15 18 19 32 27 26 13 . . . 1 . 6 8 11 13 7 1 1 . . 5 2 Highest-Rated Group 1435 | . 20 10 10 63 48 16 48 28 44 212 286 418 399 742 768 1435 1200 1009 594 . . . 64 . 250 270 375 594 263 148 42 . . 448 99 Highest-Rated Ally 148 | . 10 10 10 18 16 16 16 16 23 39 32 32 32 119 119 119 119 119 142 . . . 64 . 49 49 116 142 58 148 42 . . 135 69 Total Orders 32 | . . 8 4 . . . . . 1 1 2 5 2 . . . 1 . 2 . . . . . . 1 1 1 1 . . . . 2 . STAY 10 | . . 7 2 . . . . . . . . 1 . . . . . . . . . . . . . . . . . . . . . . . FOLLOW 4 | . . 1 2 . . . . . . . . 1 . . . . . . . . . . . . . . . . . . . . . . . AID 17 | . . . . . . . . . 1 1 2 3 2 . . . 1 . 1 . . . . . . 1 1 1 1 . . . . 2 . EXPLORE 1 | . . . . . . . . . . . . . . . . . . . 1 . . . . . . . . . . . . . . . . Ally Attacks 1350 | . . . . 4 10 . 75 12 11 70 12 134 1 115 5 127 57 151 155 . . . 1 . . . 77 111 74 . 1 . . 114 33 Total Damage 37530 | . . . . 108 449 . 713 208 171 1268 200 2541 70 4332 120 4163 1908 3789 5807 . . . 59 . . . 1928 3458 1709 . 45 . . 3921 563 Kills 248 | . . . . . 7 . 9 3 1 15 2 26 . 24 1 21 16 23 32 . . . . . . . 16 18 7 . . . . 24 3 Allies Corrupted 14 | . . . . . . . . . . . . . . 1 . 1 1 3 1 . . . . . . . . 2 2 . . . . 3 . Allies Melted 1 | . . . . . . . . . . . . . . . . . . . . . . . . . . . . . 1 . . . . . . Intel | -11 -10 -10 -8 -8 -8 -8 -8 -8 -7 -7 -7 -7 -6 -6 -5 -5 -5 -5 -5 -5 -5 -5 -4 -4 -4 -4 -4 -3 -3 -2 -2 -2 -2 -1 -1 ------- Run | Yrd Mat Sub Mat Gar Mat Gar Mat Gar Fac Gar Fac Gar Fac Gar Fac Gar Fac Gar Fac Upp Upp Zhi Pro Fac Gar Fac Gar Res Tes Res Qua Sec Gar Acc Com Active Infowar (turns) 636 | 7 295 293 . . . . . . . . . . . . . . . . 26 . . . . . . . . 15 . . . . . . . Optics 319 | . . 293 . . . . . . . . . . . . . . . . 26 . . . . . . . . . . . . . . . . Seismic 302 | 7 295 . . . . . . . . . . . . . . . . . . . . . . . . . . . . . . . . . . Cloaking 15 | . . . . . . . . . . . . . . . . . . . . . . . . . . . . 15 . . . . . . . Robot Analysis Total 7 | . 2 . . . . . . . . . . . . . . . . . . . . 4 . . . . . . . . 1 . . . . Derelict Logs Recovered 5 | . . 1 . . . . . . . . . . . . . . . . . 2 1 . 1 . . . . . . . . . . . . Drone Launches 2 | . . . . . . . . . . . . . . . . . . . 2 . . . . . . . . . . . . . . . . Drone Recoveries . | . . . . . . . . . . . . . . . . . . . . . . . . . . . . . . . . . . . . Exploration | -11 -10 -10 -8 -8 -8 -8 -8 -8 -7 -7 -7 -7 -6 -6 -5 -5 -5 -5 -5 -5 -5 -5 -4 -4 -4 -4 -4 -3 -3 -2 -2 -2 -2 -1 -1 ------------- Run | Yrd Mat Sub Mat Gar Mat Gar Mat Gar Fac Gar Fac Gar Fac Gar Fac Gar Fac Gar Fac Upp Upp Zhi Pro Fac Gar Fac Gar Res Tes Res Qua Sec Gar Acc Com Turns Passed 29797 | 70 873 2376 932 476 74 346 764 480 271 833 472 1893 143 1311 231 1407 447 603 2124 196 276 228 492 502 1027 133 1083 1035 1757 896 2535 503 1362 1040 606 Spaces Moved 18402 | 47 638 1724 360 271 47 200 516 256 165 425 298 907 83 620 98 694 224 319 2292 472 239 160 381 307 553 100 724 679 1158 488 1466 228 586 402 275 Core 484 | 13 . . . . . . . . . . . . . . . . . . 462 . . . . . 2 . . . . . . . . . 7 Treads 5715 | . . . . . . . . 1 . 38 . 758 83 620 98 694 224 319 573 . . . . . . . . . . . 823 228 586 402 268 Legs 9014 | . . 1254 360 271 47 200 516 255 165 387 298 149 . . . . . . . . . 81 381 307 551 100 724 679 1158 488 643 . . . . Wheels 1142 | 34 638 470 . . . . . . . . . . . . . . . . . . . . . . . . . . . . . . . . . Hover 176 | . . . . . . . . . . . . . . . . . . . 176 . . . . . . . . . . . . . . . . Flight 1871 | . . . . . . . . . . . . . . . . . . . 1081 472 239 79 . . . . . . . . . . . . . Fastest Speed 35 | 50 80 95 123 123 123 123 123 130 125 125 125 130 160 160 160 160 160 160 35 37 37 117 120 120 120 120 120 120 105 112 112 138 138 135 50 Average Speed 125 | 71 94 120 180 123 123 123 125 130 129 135 129 162 160 160 160 160 160 160 73 37 109 118 120 137 125 120 120 120 113 138 138 140 164 184 156 Slowest Speed 850 | 80 125 200 200 123 123 123 130 225 130 240 130 250 160 160 160 160 160 160 250 37 117 190 120 190 850 120 120 180 178 183 305 145 215 215 237 Overloaded Moves . | . . . . . . . . . . . . . . . . . . . . . . . . . . . . . . . . . . . . Propulsion Burnouts . | . . . . . . . . . . . . . . . . . . . . . . . . . . . . . . . . . . . . Robots Hopped 15 | . . . . . . . . . . . . . . . . . . . 15 . . . . . . . . . . . . . . . . Potential Cave-ins 5 | . . . . . . . . . . . . . . . . . . . . . . . . . . . . . . . . . . 5 . Cave-ins Triggered 1 | . . . . . 1 . . . . . . . . . . . . . . . . . . . . . . . . . . . . . . Teleports 1 | . . . . . . . . . . . . . . . . . . . . . . . . . . . . . . . . . . 1 . Exploration Rate (%) 45 | 3 97 68 32 43 11 40 65 45 7 60 9 93 4 68 3 82 8 46 59 73 54 60 59 17 50 6 96 32 96 27 96 12 79 20 17 Regions Visited 35 Branch Regions 9 Pre-discovered Areas 14 | . . 3 2 . . . 4 . . . . . . . . . . . . 2 . 3 . . . . . . . . . . . . . Known Exits Taken 20 | . 1 . 1 . 1 . 1 . 1 . 1 . 1 . 1 . 1 . 1 1 . . 1 1 . 1 . 1 1 1 1 1 . 1 . Unknown Exits Taken 4 | 1 . 1 . . . . . . . . . . . . . . . . . . 1 1 . . . . . . . . . . . . . Scrap Searched 14 | . . 11 . . . . . . . . . . . . . . . . . 1 2 . . . . . . . . . . . . . . Spaces Dug 239 | . . . 1 . . 5 3 . . 10 1 14 . 10 . 15 1 3 9 . . . 1 12 . . . 4 8 12 15 2 42 59 12 Terrain Destroyed 1952 | . 3 9 1 9 3 24 3 18 . 10 1 97 . 17 . 25 3 4 24 . . . 4 51 3 . 38 4 211 167 272 118 70 101 662 Melee 132 | . . . 1 . . 5 3 . . 10 1 14 . 10 . 15 1 3 9 . . . 1 12 . . . 4 8 6 7 2 . 19 1 Projectile 332 | . . . . . . . . . . . . 6 . 7 . 10 2 1 15 . . . 3 2 3 . 13 . 10 13 10 72 28 71 66 AOE 1488 | . 3 9 . 9 3 19 . 18 . . . 77 . . . . . . . . . . . 37 . . 25 . 193 148 255 44 42 11 595 Terrain Rammed . | . . . . . . . . . . . . . . . . . . . . . . . . . . . . . . . . . . . . Walls Destroyed . | . . . . . . . . . . . . . . . . . . . . . . . . . . . . . . . . . . . . Machines Disabled . | . . . . . . . . . . . . . . . . . . . . . . . . . . . . . . . . . . . . Actions | -11 -10 -10 -8 -8 -8 -8 -8 -8 -7 -7 -7 -7 -6 -6 -5 -5 -5 -5 -5 -5 -5 -5 -4 -4 -4 -4 -4 -3 -3 -2 -2 -2 -2 -1 -1 --------- Run | Yrd Mat Sub Mat Gar Mat Gar Mat Gar Fac Gar Fac Gar Fac Gar Fac Gar Fac Gar Fac Upp Upp Zhi Pro Fac Gar Fac Gar Res Tes Res Qua Sec Gar Acc Com Total 22857 | 66 878 1892 624 361 55 256 601 342 205 581 373 1167 92 823 172 895 304 394 2579 486 254 185 401 350 764 110 872 813 1422 646 1815 325 820 564 370 Wait 1544 | . 184 48 232 15 . . 19 8 12 15 52 80 5 14 72 44 63 42 97 5 2 . 13 . 73 5 32 14 17 85 165 7 95 27 2 Move 18345 | 46 637 1723 359 270 47 199 516 255 165 424 298 906 83 619 97 693 223 318 2263 471 238 159 380 307 551 99 723 678 1157 487 1465 228 585 401 275 Hop 13 | . . . . . . . . . . . . . . . . . . . 13 . . . . . . . . . . . . . . . . Pick Up 187 | 5 18 13 4 1 2 1 9 4 . 3 . 9 . 7 . 6 1 2 11 3 2 3 . 5 8 1 16 6 14 4 8 3 12 5 1 Fast Attach 231 | 7 3 3 4 . . 3 4 10 2 5 1 8 . 6 . 6 . 1 34 . 2 7 . 4 31 2 7 10 12 5 27 8 9 5 5 Attach 112 | . 1 1 2 1 . 3 4 1 . 3 . 3 . 1 . 1 . . 14 3 3 . . 1 6 . 4 4 9 1 12 6 3 11 14 Detach 46 | 1 . . . . . . 1 . . 1 . . . . . 1 . . 4 . 1 . . 1 3 . 1 4 3 2 6 2 3 5 7 Swap 231 | . 6 13 3 4 1 3 9 7 3 13 5 9 1 4 . 3 . 4 4 . . 2 1 6 8 2 12 23 42 7 10 1 4 14 7 Drop 264 | . 13 19 7 1 1 3 9 10 1 5 1 16 1 8 . 5 . 3 27 . 6 7 . 5 7 . 13 12 29 6 25 6 10 5 3 Fire 1111 | 7 16 56 8 23 4 10 24 30 11 41 12 60 2 35 3 44 15 13 79 . . . 6 4 65 1 61 51 102 34 70 43 90 50 41 Melee 431 | . . 8 2 4 . 14 6 16 1 33 1 54 . 45 . 34 1 7 20 4 . 7 1 17 11 . . 5 27 10 27 21 1 39 15 Ram . | . . . . . . . . . . . . . . . . . . . . . . . . . . . . . . . . . . . . Kick 14 | . . . . . . . . . 10 . . . . . . . . . . . . . . . . . . . 4 . . . . . . Crush 12 | . . . . . . . . . . . . . . . . . 1 . 10 . . . . . . . . . . . . . . 1 . Escape Stasis 15 | . . . . . . . . . . . . 2 . . . . . . . . . . . . . . . . . 5 . . 8 . . Rewire 288 | . . . . 41 . 20 . 1 . 38 3 20 . 83 . 58 . 4 3 . . . . . 1 . 3 6 6 . . . . 1 . Trap . | . . . . . . . . . . . . . . . . . . . . . . . . . . . . . . . . . . . . Miscellaneous 13 | . . 8 3 1 . . . . . . . . . 1 . . . . . . . . . . . . . . . . . . . . . Route ------- -11/Scrapyard -10/Materials (discovered 5 exits: *Mat x3 / *Min / *Sub) -10/Subcaves (discovered 3 exits: *Mat / [*Rec] / [*Scr]) -8/Materials (discovered 4 exits: *Fac x3 / Gar) -8/Garrison (discovered 4 exits: *Mat x4) -8/Materials -8/Garrison (discovered 4 exits: *Fac x3 / *Mat) -8/Materials (discovered 4 exits: *Fac x3 / Gar) -8/Garrison (discovered 3 exits: *Fac x3) -7/Factory (discovered 4 exits: *Sto / Low x2 / Gar) -7/Garrison (discovered 2 exits: *Fac x2) -7/Factory -7/Garrison (discovered 3 exits: *Fac x3) -6/Factory -6/Garrison -5/Factory -5/Garrison (discovered 3 exits: *Fac x3) -5/Factory -5/Garrison (discovered 2 exits: *Fac / *Fac) -5/Factory (discovered 3 exits: *Fac x2 / *Upp) -5/Upper Caves -5/Upper Caves -5/Zhirov -4/Proximity Caves -4/Factory (discovered 3 exits: Res / Ext / Gar) -4/Garrison (discovered 3 exits: *Fac x3) -4/Factory -4/Garrison (discovered 3 exits: *Res x3) -3/Research (discovered 4 exits: *Res x2 / *Tes x2) -3/Testing -2/Research (discovered 2 exits: *Qua x2) -2/Quarantine (discovered 3 exits: *Acc / *Sec / [*Frg]) -2/Section 7 (discovered 2 exits: Acc / Gar) -2/Garrison (discovered 3 exits: *Acc x3) -1/Access (discovered 2 exits: Sur / *Com) -1/Command (discovered 1 exit: *Sur) History --------- Turn | Location | Event 36 | -11/Scrapyard | Discovered new exit (range 15) 71 | -11/Scrapyard | Entered Materials 241 | -10/Materials | Discovered new exit (range 5) 293 | -10/Materials | Central database locked down 303 | -10/Materials | Discovered new exit (range 16) 313 | -10/Materials | Build established: Mutant 584 | -10/Materials | Discovered new exit (range 15) 584 | -10/Materials | Identified exit to Mines 627 | -10/Materials | Learned location of 1 exit from Recycling 666 | -10/Materials | Learned 2 Storage zone layouts 710 | -10/Materials | Learned Storage emergency access door positions 714 | -10/Materials | Learned Storage trap positions 715 | -10/Materials | Learned 2 Storage zone layouts 716 | -10/Materials | Loaded intel: 1 repair station location 717 | -10/Materials | Learned Storage trap positions 722 | -10/Materials | Identified exit to Subcaves 736 | -10/Materials | Learned location of 1 exit from Storage 761 | -10/Materials | Identified exit to Materials 944 | -10/Materials | Entered Subcaves 944 | -10/Subcaves | Accompanied by 1 ally 945 | -10/Subcaves | Approached by a straggling Scientist 983 | -10/Subcaves | Learned location of Storage (-7) 1066 | -10/Subcaves | Learned location of Zion (-6) 1066 | -10/Subcaves | Met a Zionite searching for "candidates" 1244 | -10/Subcaves | Visited 4L-MR0's lab 1259 | -10/Subcaves | Found Cargo Legs 1327 | -10/Subcaves | Shifting Twisted Machinery released Sub. Machine Gun 1336 | -10/Subcaves | Shifting Twisted Machinery released Spk. Treads 1497 | -10/Subcaves | Attached Cargo Legs, gained temporary slots: Utility x2 1652 | -10/Subcaves | Visited Clippyterm 1656 | -10/Subcaves | Learned location of Deep Caves (-6) 1693 | -10/Subcaves | Shifting Twisted Machinery released Mak. System Restoration Module 1701 | -10/Subcaves | Shifting Twisted Machinery released Battle Cannon 1701 | -10/Subcaves | Discovered new exit (range 6) 2685 | -10/Subcaves | A swath of the cavern ceiling suddenly collapsed 2820 | -10/Subcaves | Discovered new exit (range 13) 3320 | -10/Subcaves | Entered Materials 3320 | -8/Materials | Accompanied by 1 ally 3320 | -8/Materials | Evolved 4 slots: Propulsion x2, Weapon x2 3603 | -8/Materials | Identified exit to Garrison 3631 | -8/Materials | Build established: Tank 3650 | -8/Materials | Discovered new exit (range 11) 3833 | -8/Materials | Learned 4 Factory zone layouts 3905 | -8/Materials | Identified exit to Factory 3967 | -8/Materials | Learned Storage terminal intel 4044 | -8/Materials | Repaired Imp. EM Shotgun 4061 | -8/Materials | Learned 4 Lower Caves zone layouts 4092 | -8/Materials | Learned 2 Storage zone layouts 4178 | -8/Materials | Learned Factory trap positions 4217 | -8/Materials | Build established: Scavenger-Tank 4235 | -8/Materials | Learned location of Extension (-4) 4252 | -8/Materials | Entered Garrison 4252 | -8/Garrison | Accompanied by 1 ally 4254 | -8/Garrison | Triggered checkpoint 4268 | -8/Garrison | Triggered checkpoint 4294 | -8/Garrison | Triggered checkpoint 4327 | -8/Garrison | Garrison Relay disabled 4375 | -8/Garrison | Installed Relay Interface Framework 4493 | -8/Garrison | Discovered new exit (range 45) 4493 | -8/Garrison | Discovered new exit (range 69) 4493 | -8/Garrison | Discovered new exit (range 73) 4493 | -8/Garrison | Discovered new exit (range 55) 4538 | -8/Garrison | Triggered checkpoint 4584 | -8/Garrison | Lost 3 allies 4636 | -8/Garrison | Destroyed 7 combat bots 4680 | -8/Garrison | Triggered checkpoint 4728 | -8/Garrison | Entered Materials 4728 | -8/Materials | Accompanied by 3 allies 4779 | -8/Materials | Garrison activated, responded to threat 4792 | -8/Materials | Crushed by falling debris 4802 | -8/Materials | Identified exit to Garrison 4802 | -8/Materials | Entered Garrison 4816 | -8/Garrison | Lost 3 allies 4840 | -8/Garrison | Discovered exit to Factory (range 70) 4840 | -8/Garrison | Discovered exit to Factory (range 40) 4840 | -8/Garrison | Discovered exit to Factory (range 68) 4840 | -8/Garrison | Discovered new exit (range 24) 4854 | -8/Garrison | Triggered checkpoint 4885 | -8/Garrison | Expanded RIF knowledge: Command Fork 4911 | -8/Garrison | Garrison Relay disabled 4958 | -8/Garrison | Triggered checkpoint 5056 | -8/Garrison | Expanded RIF knowledge: Command Fork 5090 | -8/Garrison | Build established: Gunner 5148 | -8/Garrison | Entered Materials 5148 | -8/Materials | Accompanied by 3 allies 5174 | -8/Materials | Discovered exit to Factory (range 12) 5530 | -8/Materials | Build established: Tank 5562 | -8/Materials | Repaired Aluminum Leg? 5614 | -8/Materials | Discovered exit to Factory (range 15) 5766 | -8/Materials | Discovered exit to Factory (range 16) 5804 | -8/Materials | Learned Storage emergency access door positions 5907 | -8/Materials | Identified exit to Garrison 5912 | -8/Materials | Entered Garrison 5912 | -8/Garrison | Accompanied by 2 allies 5936 | -8/Garrison | Expanded RIF knowledge: Signal Jamming 5968 | -8/Garrison | Discovered exit to Factory (range 57) 5968 | -8/Garrison | Discovered exit to Factory (range 80) 5968 | -8/Garrison | Discovered exit to Factory (range 59) 5981 | -8/Garrison | System corruption reached 10% 6028 | -8/Garrison | Triggered checkpoint 6061 | -8/Garrison | Destroyed 8 combat bots 6164 | -8/Garrison | Triggered checkpoint 6214 | -8/Garrison | Expanded RIF knowledge: Code Merge 6250 | -8/Garrison | Garrison Relay disabled 6355 | -8/Garrison | Garrison Relay disabled 6392 | -8/Garrison | Entered Factory 6392 | -7/Factory | Accompanied by 1 ally 6392 | -7/Factory | Evolved 2 slots: Utility x2 6393 | -7/Factory | Identified exit to Storage 6393 | -7/Factory | Identified exit to Lower Caves 6395 | -7/Factory | Loaded intel: 86 trap records 6646 | -7/Factory | Build established: Bothacker-Gunner 6658 | -7/Factory | Identified exit to Garrison 6663 | -7/Factory | Entered Garrison 6663 | -7/Garrison | Accompanied by 3 allies 6723 | -7/Garrison | Triggered checkpoint 6834 | -7/Garrison | P-60 Hacker assimilated allied Trooper 4a 6932 | -7/Garrison | Garrison Relay disabled 6947 | -7/Garrison | Triggered checkpoint 7081 | -7/Garrison | Triggered checkpoint 7087 | -7/Garrison | Triggered checkpoint 7109 | -7/Garrison | Triggered checkpoint 7161 | -7/Garrison | Discovered new exit (range 8) 7178 | -7/Garrison | Learned Factory security intel 7189 | -7/Garrison | Triggered checkpoint 7203 | -7/Garrison | Garrison Relay disabled 7299 | -7/Garrison | Triggered checkpoint 7397 | -7/Garrison | Garrison Relay disabled 7409 | -7/Garrison | Triggered checkpoint 7444 | -7/Garrison | Discovered new exit (range 11) 7467 | -7/Garrison | Expanded RIF knowledge: Hotswap 7496 | -7/Garrison | Entered Factory 7496 | -7/Factory | Accompanied by 8 allies 7601 | -7/Factory | Repaired Lgt. Nuclear Core 7755 | -7/Factory | Build established: Botlord-Gunner 7942 | -7/Factory | Identified exit to Garrison 7968 | -7/Factory | Entered Garrison 7968 | -7/Garrison | Accompanied by 11 allies 8044 | -7/Garrison | Triggered checkpoint 8058 | -7/Garrison | Garrison Relay disabled 8167 | -7/Garrison | Lost 3 allies 8216 | -7/Garrison | Lost 3 parts (1p1n1u) 8632 | -7/Garrison | Triggered checkpoint 8655 | -7/Garrison | Triggered checkpoint 8762 | -7/Garrison | Triggered checkpoint 8767 | -7/Garrison | Garrison Relay disabled 8841 | -7/Garrison | Discovered new exit (range 10) 8966 | -7/Garrison | Triggered checkpoint 8998 | -7/Garrison | Triggered checkpoint 9024 | -7/Garrison | Garrison Relay disabled 9136 | -7/Garrison | Discovered new exit (range 12) 9180 | -7/Garrison | Phase Generator disabled 9333 | -7/Garrison | Build established: Botlord-Tank 9376 | -7/Garrison | Learned Factory security intel 9395 | -7/Garrison | Discovered new exit (range 12) 9404 | -7/Garrison | Triggered checkpoint 9437 | -7/Garrison | Garrison Relay disabled 9438 | -7/Garrison | Triggered checkpoint 9514 | -7/Garrison | Rescued a captive Derelict 9683 | -7/Garrison | Garrison Relay disabled 9706 | -7/Garrison | Expanded RIF knowledge: Patrol Navigation 9861 | -7/Garrison | Entered Factory 9861 | -6/Factory | Accompanied by 13 allies 9861 | -6/Factory | Evolved 2 slots: Utility x2 9999 | -6/Factory | Identified exit to Garrison 10004 | -6/Factory | Entered Garrison 10004 | -6/Garrison | Warlord forces raided the area 10004 | -6/Garrison | Accompanied by 14 allies 10032 | -6/Garrison | Triggered checkpoint 10064 | -6/Garrison | Lost 6 allies 10110 | -6/Garrison | Rewired Executioner 10116 | -6/Garrison | Triggered checkpoint 10127 | -6/Garrison | Rewired Executioner 10133 | -6/Garrison | Lost 4 allies 10215 | -6/Garrison | Garrison Relay disabled 10262 | -6/Garrison | Triggered checkpoint 10343 | -6/Garrison | Warlord forces retreated 10370 | -6/Garrison | Triggered checkpoint 10372 | -6/Garrison | Triggered checkpoint 10383 | -6/Garrison | Triggered checkpoint 10400 | -6/Garrison | Triggered checkpoint 10436 | -6/Garrison | Triggered checkpoint 10560 | -6/Garrison | Triggered checkpoint 10598 | -6/Garrison | Triggered checkpoint 10601 | -6/Garrison | Expanded RIF knowledge: Structural Interface 10633 | -6/Garrison | Garrison Relay disabled 10811 | -6/Garrison | Spotted B-75 Beast 10856 | -6/Garrison | Allies destroyed B-75 Beast 10870 | -6/Garrison | Found Relay Coupler [Proto] 10873 | -6/Garrison | Found Relay Coupler [Proto] 10880 | -6/Garrison | Found Relay Coupler [Proto] 10883 | -6/Garrison | Found Relay Coupler [Proto] 11118 | -6/Garrison | Discovered new exit (range 12) 11140 | -6/Garrison | Triggered checkpoint 11155 | -6/Garrison | Garrison Relay disabled 11315 | -6/Garrison | Entered Factory 11315 | -5/Factory | Accompanied by 18 allies 11315 | -5/Factory | Evolved 2 slots: Utility x2 11455 | -5/Factory | Identified exit to Garrison 11546 | -5/Factory | Entered Garrison 11546 | -5/Garrison | Accompanied by 19 allies 11602 | -5/Garrison | Triggered checkpoint 11618 | -5/Garrison | Garrison Relay disabled 11760 | -5/Garrison | Triggered checkpoint 11812 | -5/Garrison | Triggered checkpoint 11844 | -5/Garrison | Triggered checkpoint 11850 | -5/Garrison | Lost 14 allies 11868 | -5/Garrison | Triggered checkpoint 11895 | -5/Garrison | Garrison Relay disabled 11930 | -5/Garrison | Discovered new exit (range 12) 11942 | -5/Garrison | Triggered checkpoint 11956 | -5/Garrison | Discovered new exit (range 3) 12185 | -5/Garrison | Found embedded Infiltrators 12190 | -5/Garrison | Triggered checkpoint 12218 | -5/Garrison | Triggered checkpoint 12225 | -5/Garrison | Garrison Relay disabled 12487 | -5/Garrison | Discovered new exit (range 16) 12496 | -5/Garrison | Triggered checkpoint 12507 | -5/Garrison | Spotted B-75 Beast 12521 | -5/Garrison | Allies destroyed B-75 Beast 12565 | -5/Garrison | Expanded RIF knowledge: Program Shield 12621 | -5/Garrison | Garrison Relay disabled 12888 | -5/Garrison | Build established: Commander-Tank 12953 | -5/Garrison | Entered Factory 12953 | -5/Factory | Accompanied by 27 allies 13249 | -5/Factory | Build established: Botlord-Tank 13253 | -5/Factory | First assault squad dispatched 13283 | -5/Factory | Garrison activated, responded to threat 13338 | -5/Factory | Identified exit to Garrison 13344 | -5/Factory | Lost 9 allies 13400 | -5/Factory | Entered Garrison 13400 | -5/Garrison | Accompanied by 20 allies 13432 | -5/Garrison | Garrison Relay disabled 13456 | -5/Garrison | Triggered checkpoint 13527 | -5/Garrison | Expanded RIF knowledge: Autooverride 13612 | -5/Garrison | Triggered checkpoint 13612 | -5/Garrison | Triggered checkpoint 13690 | -5/Garrison | Triggered checkpoint 13694 | -5/Garrison | Triggered checkpoint 13697 | -5/Garrison | Garrison Relay disabled 13717 | -5/Garrison | Triggered checkpoint 13744 | -5/Garrison | Triggered checkpoint 13768 | -5/Garrison | Discovered new exit (range 3) 13812 | -5/Garrison | Lost 5 allies 13852 | -5/Garrison | Discovered new exit (range 10) 13871 | -5/Garrison | Expanded RIF knowledge: Crosswire 14003 | -5/Garrison | Entered Factory 14003 | -5/Factory | Accompanied by 12 allies 14303 | -5/Factory | First assault squad dispatched 14563 | -5/Factory | Central database locked down 14630 | -5/Factory | Lost 8 allies 14772 | -5/Factory | Found Prototype Processor 14772 | -5/Factory | Identified Exp. Core Analyzer 14889 | -5/Factory | Identified exit to Garrison 14904 | -5/Factory | Cargo convoy interrupted 14913 | -5/Factory | Garrison activated, responded to threat 14991 | -5/Factory | Core integrity fell below 50% 15020 | -5/Factory | Discovered new exit (range 9) 15030 | -5/Factory | Lost 8 parts (2n4u2w) 15049 | -5/Factory | Lost 15 allies 15255 | -5/Factory | Build established: Botlord-Mutant 15512 | -5/Factory | Core integrity fell below 20% 15664 | -5/Factory | Spotted B-75 Beast 15936 | -5/Factory | Identified exit to Factory 15950 | -5/Factory | Build established: Gunner 16121 | -5/Factory | Discovered new exit (range 14) 16122 | -5/Factory | Discovered exit to Factory (range 11) 16126 | -5/Factory | Identified exit to Upper Caves 16127 | -5/Factory | Entered Upper Caves 16252 | -5/Upper Caves | Learned location of Armory (-4) 16320 | -5/Upper Caves | Discovered new exit (range 6) 16322 | -5/Upper Caves | Identified exit to Upper Caves 16323 | -5/Upper Caves | Entered another Upper Caves area 16412 | -5/Upper Caves | Learned 8 Factory zone layouts 16419 | -5/Upper Caves | Build established: Tank 16568 | -5/Upper Caves | Attracted the attention of an 0b10 outpost 16592 | -5/Upper Caves | Discovered new exit (range 6) 16599 | -5/Upper Caves | Entered Zhirov 16599 | -5/Zhirov | Discovered new exit (range 3) 16622 | -5/Zhirov | Met Zhirov 16647 | -5/Zhirov | Learned location of Quarantine (-2) 16647 | -5/Zhirov | Learned location of Testing (-3) 16647 | -5/Zhirov | Learned location of Command (-1) 16654 | -5/Zhirov | Zhirov requested help retrieving the SGEMP Prototype 16672 | -5/Zhirov | Found Alien Artifact 16672 | -5/Zhirov | Identified Integrated Reactor 16672 | -5/Zhirov | Installed Integrated Reactor, increased core energy generation (+10) 16730 | -5/Zhirov | Found Alien Artifact 16827 | -5/Zhirov | Entered Proximity Caves 17068 | -4/Proximity Caves | Learned location of 1 exit from Research 17263 | -4/Proximity Caves | Spotted B-86 Titan 17277 | -4/Proximity Caves | System corruption reached 10% 17313 | -4/Proximity Caves | Discovered exit to Factory (range 6) 17319 | -4/Proximity Caves | Entered Factory 17319 | -4/Factory | Evolved 2 slots: Propulsion x2 17320 | -4/Factory | Identified exit to Extension 17321 | -4/Factory | Identified exit to Research 17590 | -4/Factory | Build established: Mutant 17821 | -4/Factory | Identified exit to Garrison 17821 | -4/Factory | Entered Garrison 17979 | -4/Garrison | Triggered checkpoint 18000 | -4/Garrison | Expanded RIF knowledge: Watcher Feeds 18016 | -4/Garrison | Discovered new exit (range 54) 18016 | -4/Garrison | Discovered new exit (range 71) 18016 | -4/Garrison | Discovered new exit (range 58) 18097 | -4/Garrison | Triggered checkpoint 18105 | -4/Garrison | Lost 4 parts (1p1n1u1w) 18109 | -4/Garrison | Garrison Relay disabled 18241 | -4/Garrison | Spotted B-86 Titan 18326 | -4/Garrison | Triggered checkpoint 18328 | -4/Garrison | Destroyed B-86 Titan 18425 | -4/Garrison | Build established: Botlord-Mutant 18468 | -4/Garrison | Lost 13 parts (1p3n3u6w) 18500 | -4/Garrison | System corruption reached 10% 18755 | -4/Garrison | Garrison Relay disabled 18848 | -4/Garrison | Entered Factory 18848 | -4/Factory | Accompanied by 6 allies 18972 | -4/Factory | Identified exit to Garrison 18981 | -4/Factory | Entered Garrison 18981 | -4/Garrison | Accompanied by 8 allies 19005 | -4/Garrison | Garrison Relay disabled 19039 | -4/Garrison | Triggered checkpoint 19052 | -4/Garrison | Garrison Relay disabled 19062 | -4/Garrison | Build established: Botlord-Gunner 19153 | -4/Garrison | Spotted B-86 Titan 19157 | -4/Garrison | Triggered checkpoint 19157 | -4/Garrison | Triggered checkpoint 19167 | -4/Garrison | Triggered checkpoint 19181 | -4/Garrison | Triggered checkpoint 19190 | -4/Garrison | Destroyed B-86 Titan 19197 | -4/Garrison | Core integrity fell below 50% 19260 | -4/Garrison | Lost 13 allies 19399 | -4/Garrison | Garrison Relay disabled 19425 | -4/Garrison | Triggered checkpoint 19445 | -4/Garrison | Learned Research security intel 19458 | -4/Garrison | Discovered exit to Research (range 2) 19615 | -4/Garrison | Build established: Botlord-Tank 19647 | -4/Garrison | Triggered checkpoint 19682 | -4/Garrison | Discovered exit to Research (range 8) 19700 | -4/Garrison | Expanded RIF knowledge: Zone Cloak 19758 | -4/Garrison | Garrison Relay disabled 19778 | -4/Garrison | Garrison Relay disabled 19945 | -4/Garrison | Garrison Relay disabled 19986 | -4/Garrison | Discovered exit to Research (range 10) 20064 | -4/Garrison | Entered Research 20064 | -3/Research | Accompanied by 6 allies 20064 | -3/Research | Evolved 2 slots: Power x1, Utility x1 20065 | -3/Research | Identified exit to Research 20287 | -3/Research | Found Prototype Device 20287 | -3/Research | Identified Adv. Kinecellerator 20564 | -3/Research | First assault squad dispatched 20727 | -3/Research | Discovered exit to Research (range 7) 20855 | -3/Research | Identified exit to Testing 21099 | -3/Research | Entered Testing 21111 | -3/Testing | Found Prototype Energy Gun 21111 | -3/Testing | Identified Warp Gun 21171 | -3/Testing | Build established: Botlord-Gunner 21181 | -3/Testing | Identified Transdimensional Reconstructor 21242 | -3/Testing | Found Null Cannon 21306 | -3/Testing | Found Centrium Heavy Armor Plating 21323 | -3/Testing | Spotted PL-GG2QC3VNT5 21334 | -3/Testing | Destroyed PL-GG2QC3VNT5 21400 | -3/Testing | System corruption reached 10% 21436 | -3/Testing | Found Prototype Device 21436 | -3/Testing | Identified 2N-1CE's Frost Array 21460 | -3/Testing | Spotted Striker 21462 | -3/Testing | Spotted Striker 21492 | -3/Testing | Found Z-bomb Delivery System 21506 | -3/Testing | Spotted Superbehemoth 21550 | -3/Testing | Destroyed Superbehemoth 21569 | -3/Testing | Lost 3 allies 21591 | -3/Testing | Found SHELL Armor 21594 | -3/Testing | Found Hvy. Regenerative Plating 21703 | -3/Testing | Spotted Alpha 7 21708 | -3/Testing | Destroyed Striker 21722 | -3/Testing | Destroyed Alpha 7 21755 | -3/Testing | Stole the SGEMP Prototype 21944 | -3/Testing | Found Portable AFG 22167 | -3/Testing | Found Potential Cannon 22170 | -3/Testing | Found Imp. Potential Cannon 22381 | -3/Testing | Scanned by Researcher 22599 | -3/Testing | First assault squad dispatched 22622 | -3/Testing | Destroyed 8 combat bots 22705 | -3/Testing | Discovered exit to Research (range 16) 22795 | -3/Testing | Lost 9 allies 22856 | -3/Testing | Entered Research 22856 | -2/Research | Evolved 2 slots: Power x1, Utility x1 23038 | -2/Research | Found Prototype Device 23038 | -2/Research | Identified Thermal Barrier 23085 | -2/Research | Repaired Centrium Leg 23135 | -2/Research | Central database locked down 23329 | -2/Research | Build established: Hacker-Gunner 23356 | -2/Research | First assault squad dispatched 23660 | -2/Research | Identified exit to Quarantine 23732 | -2/Research | Spotted B-90 Cyclops 23752 | -2/Research | Entered Quarantine 23774 | -2/Quarantine | Found Alien Artifact 23774 | -2/Quarantine | Identified Terrabomb 23774 | -2/Quarantine | Used Terrabomb 23783 | -2/Quarantine | Found Terrabomb 23879 | -2/Quarantine | Found Alien Energy Cannon 23879 | -2/Quarantine | Identified Core Cannon 23925 | -2/Quarantine | Discovered new exit (range 17) 24030 | -2/Quarantine | System corruption reached 10% 24039 | -2/Quarantine | Spotted Alpha 7 24085 | -2/Quarantine | Destroyed Alpha 7 24102 | -2/Quarantine | Lost 7 parts (2p2n3w) 24154 | -2/Quarantine | Found Alien Launcher 24154 | -2/Quarantine | Identified Sigix Terminator 24252 | -2/Quarantine | First assault squad dispatched 24256 | -2/Quarantine | Found Alien Slashing Weapon 24256 | -2/Quarantine | Identified Sigix Broadsword 24308 | -2/Quarantine | Cryocooling Duct disabled 24314 | -2/Quarantine | Cryocooling Duct disabled 24323 | -2/Quarantine | Ambient heat levels rising (+20) 24323 | -2/Quarantine | Non-combat units ordered to evacuate 24329 | -2/Quarantine | Ambient heat levels rising (+20) 24329 | -2/Quarantine | Combat units ordered to evacuate 24429 | -2/Quarantine | Quarantine Guard activated 24465 | -2/Quarantine | Found Alien Artifact 24465 | -2/Quarantine | Identified Phase Redirector 24527 | -2/Quarantine | Build established: Hacker-Mutant 24559 | -2/Quarantine | Spotted Quarantine Guard 24562 | -2/Quarantine | Destroyed Quarantine Guard 24579 | -2/Quarantine | Spotted Quarantine Guard 24588 | -2/Quarantine | Destroyed Quarantine Guard 24590 | -2/Quarantine | Spotted Quarantine Guard 24669 | -2/Quarantine | Destroyed Quarantine Guard 24968 | -2/Quarantine | Spotted Quarantine Guard 25063 | -2/Quarantine | Spotted Quarantine Guard 25101 | -2/Quarantine | Destroyed Quarantine Guard 25102 | -2/Quarantine | Spotted Quarantine Guard 25104 | -2/Quarantine | Destroyed Quarantine Guard 25199 | -2/Quarantine | Spotted Quarantine Guard 25263 | -2/Quarantine | Destroyed Quarantine Guard 25521 | -2/Quarantine | Found Alien Artifact 25554 | -2/Quarantine | Spotted Quarantine Guard 25561 | -2/Quarantine | Destroyed Quarantine Guard 25623 | -2/Quarantine | Spotted Quarantine Guard 25647 | -2/Quarantine | Destroyed Quarantine Guard 26012 | -2/Quarantine | Learned Research non-interactive machine intel 26079 | -2/Quarantine | Learned Section 7 terminal intel 26168 | -2/Quarantine | Spotted Fortress 26185 | -2/Quarantine | Identified exit to Section 7 26236 | -2/Quarantine | Lost 3 parts (1p2u) 26249 | -2/Quarantine | Learned Access repair station intel 26266 | -2/Quarantine | Learned 4 Research zone layouts 26269 | -2/Quarantine | Discovered new exit (range 6) 26269 | -2/Quarantine | Spotted Quarantine Guard 26269 | -2/Quarantine | Spotted Quarantine Guard 26287 | -2/Quarantine | Entered Section 7 26288 | -2/Section 7 | Identified exit to Access 26289 | -2/Section 7 | Loaded intel: 22 terminal locations 26301 | -2/Section 7 | Found Integrated Reactor 26301 | -2/Section 7 | Installed Integrated Reactor, increased core energy generation (+10) 26426 | -2/Section 7 | Spotted S7 Guard 26436 | -2/Section 7 | Spotted S7 Guard 26444 | -2/Section 7 | Destroyed S7 Guard 26475 | -2/Section 7 | Build established: Scavenger-Mutant 26475 | -2/Section 7 | Destroyed S7 Guard 26503 | -2/Section 7 | Core integrity fell below 50% 26525 | -2/Section 7 | Lost 3 parts (1n2w) 26537 | -2/Section 7 | First assault squad dispatched 26552 | -2/Section 7 | Found Alien Artifact 26552 | -2/Section 7 | Identified Core Regenerator 26552 | -2/Section 7 | Used Core Regenerator, restored core integrity (+362) 26711 | -2/Section 7 | Scanned by Researcher 26720 | -2/Section 7 | Found Alien Artifact 26720 | -2/Section 7 | Identified Core Physics Calibrator 26779 | -2/Section 7 | Build established: Scavenger-Tank 26790 | -2/Section 7 | Identified exit to Garrison 26790 | -2/Section 7 | Entered Garrison 26878 | -2/Garrison | Spotted B-90 Cyclops 26886 | -2/Garrison | Destroyed B-90 Cyclops 26898 | -2/Garrison | Triggered checkpoint 27058 | -2/Garrison | Triggered checkpoint 27100 | -2/Garrison | Garrison Relay disabled 27241 | -2/Garrison | Expanded RIF knowledge: Autoassimilate 27282 | -2/Garrison | Triggered checkpoint 27370 | -2/Garrison | Triggered checkpoint 27417 | -2/Garrison | Expanded RIF knowledge: Zone Cloak 27440 | -2/Garrison | Discovered exit to Access (range 10) 27448 | -2/Garrison | Triggered checkpoint 27482 | -2/Garrison | Garrison Relay disabled 27638 | -2/Garrison | Triggered checkpoint 27736 | -2/Garrison | Triggered checkpoint 27778 | -2/Garrison | Build established: Botlord-Tank 27782 | -2/Garrison | Garrison Relay disabled 27810 | -2/Garrison | Triggered checkpoint 28060 | -2/Garrison | Garrison Relay disabled 28152 | -2/Garrison | Entered Access 28152 | -1/Access | Evolved 2 slots: Utility x2 28153 | -1/Access | Loaded intel: 4 repair station locations 28154 | -1/Access | Loaded intel: 122 machine locations 28154 | -1/Access | Loaded intel: 102 trap records 28154 | -1/Access | Identified exit to Surface 28154 | -1/Access | Discovered exit to Surface (range 249) 28154 | -1/Access | Identified exit to Command 28154 | -1/Access | Discovered exit to Command (range 165) 28155 | -1/Access | Delivered the SGEMP Prototype to Zhirov 28155 | -1/Access | Zhirov transferred Access data 28301 | -1/Access | Found Unknown Device 28301 | -1/Access | Identified Quantum Capacitor 28358 | -1/Access | Energy Cycler disabled 28560 | -1/Access | Zhirov warped through subspace 28652 | -1/Access | First assault squad dispatched 28911 | -1/Access | P-80 Master assimilated allied Artificer 10b 28945 | -1/Access | High security lockdown imminent 28964 | -1/Access | Intercept squad dispatched 28996 | -1/Access | Spotted Tracker 28997 | -1/Access | Spotted Tracker 29025 | -1/Access | High security lockdown engaged 29025 | -1/Access | Spotted Combat Programmer 29046 | -1/Access | Destroyed Tracker 29049 | -1/Access | Warped through subspace 29063 | -1/Access | Lost 4 allies 29071 | -1/Access | Lost 3 parts (1p1n1w) 29091 | -1/Access | Spotted Combat Programmer 29119 | -1/Access | Destroyed Combat Programmer 29192 | -1/Access | Entered Command 29401 | -1/Command | Lost 3 allies 29528 | -1/Command | Spotted M Guard 29529 | -1/Command | Spotted Combat Programmer 29530 | -1/Command | Spotted Combat Programmer 29560 | -1/Command | Destroyed Combat Programmer 29562 | -1/Command | Spotted M Guard 29567 | -1/Command | Destroyed Combat Programmer 29590 | -1/Command | Core integrity fell below 50% 29603 | -1/Command | Destroyed M Guard 29630 | -1/Command | Destroyed M Guard 29630 | -1/Command | All MAIN.C guards destroyed 29647 | -1/Command | Lost 7 parts (1p2n3u1w) 29692 | -1/Command | First assault squad dispatched 29754 | -1/Command | Spotted Striker 29782 | -1/Command | Spotted Executioner 29785 | -1/Command | Destroyed Striker 29788 | -1/Command | Spotted Executioner 29788 | -1/Command | Spotted Alpha 7 29792 | -1/Command | Core integrity fell below 20% 29793 | -1/Command | Fired Sigix Terminator 29793 | -1/Command | Destroyed Alpha 7 29793 | -1/Command | Destroyed Executioner 29793 | -1/Command | Destroyed Executioner 29793 | -1/Command | Destroyed B-99 Colossus 29793 | -1/Command | Destroyed Striker 29793 | -1/Command | Destroyed Executioner 29793 | -1/Command | Destroyed Executioner 29798 | -1/Command | Discovered exit to Surface (range 15) 29798 | -1/Command | Destroyed by G-73 Enforcer with Heavy Laser Last Messages --------------- 29789_ Penetrated by Slug. 29792_ Exp. Cooling System destroyed. 29792_ Penetrated by Slug. 29793_ Sigix Terminator expended. 29793_ Alpha 7 destroyed. 29793_ Executioner destroyed. 29793_ Enh. Hardcell Cannon destroyed. 29793_ Destroyed Enh. Hardcell Cannon. 29793_ Adv. Heavy Siege Treads destroyed. 29793_ Destroyed Adv. Heavy Siege Treads. 29793_ Relay Coupler [Hunter] destroyed. 29793_ Destroyed Relay Coupler [Hunter]. 29793_ Enh. Hardcell Cannon destroyed. 29793_ Destroyed Enh. Hardcell Cannon. 29793_ Lgt. Antimatter Reactor destroyed. 29793_ Destroyed Lgt. Antimatter Reactor. 29795_ System corrupted: Heat flow error (+299). 29795_ Dropped Huge Storage Unit. 29798_ EXIT=FOUND: SURFACE 29798_ Biometal Medium Treads destroyed. Map ----- +----------------------------------------------------+ | ?????????????????????????????????????????????????? | | ?????????????????????????????????????????????????? | | ?????????????????????????????????????????????????? | | ?????????????????????????????????????????????????? | | ?????????????????????????????????????????????????? | | ?????????????????# ??????????????????????????????? | | ?????????????????# ??????????????????????????????? | | ?????????????????# ?????????????????????????????? | | ?????????????????# ?????????????????????????????? | | ????????????????## #????????????????????????????? | | ????????????????# #####???????????????????????? | | ????????????????# ???????????????????????? | | ????????????????# ???????????????????????? | | ????????????????# #???????????????????????? | | ????????????????# #####???????????????????? | | ????????????????# # ####????????????????? | | ????????????????# ; ####?????????????? | | ????????????????# ||!; ## ???????????? | | ??????????????### ]!*; ;##??????????? | | ????????????### ;;;;;;;!!; ;;;;;;;;??????????? | | ???????????## ; ;;;;;;;;??????????? | | ???????????# ; ;; ?????????? | | ???????????# ; ;; ?????????? | | ??????????# ; ; ;; ????????? | | ??????????# ;;;; ; ; ; ;; ????????? | | ??????????# ; @ ?????? | | ?????????# ; ; ;; <" ????????? | | ?????????# ; ; ;; "" ????????? | | ?????????? ; ; ;; ?????????? | | ?????????? ; ; ;; ?????????? | | ?????????? ; ; ;; ??????????? | | ??????????? ; ; ;; ??????????? | | ??????????? ; ; ;; ??????????? | | ???????????? ; ; ;;;;; ???????????? | | ???????????? ; ; ;;;; ???????????? | | ????????????? ; ; ;;; ????????????? | | ?????????????# ; ; ;; ????????????? | | ?????????????# # ; ; ;;??????????????? | | ?????????????# #?? ; g ; ????????????????? | | ?????????????# #????# ;???????????????????? | | ?####??#####?#"###??# #???????????????????? | | ?# ??# #?# #### = #???????????????????? | | ## ### ### "#""###/#####???????? ?????????? | | / #??????????#/+++#???????? | | / ==############ #???????? | | * # ## #???????? | | =%[# ## #?####### | | | / ## #?# | | ## ### # # ### """!" "" #?# = | | ## # # ## #[%# ## #?# | +----------------------------------------------------+ Best States ------------- Heat Dissipation 190 Coolant Potential 100 Energy Generation 93 Energy Capacity 1340 Matter Stores 300 Matter Capacity 300 Sight Range 23 Terrain Scan Density 10 Cloak Strength 3 Additional Mass Support 9 Corruption Containment 12 Corruption Block 17 Armor Coverage 1800 Resistance: KI 20 Core Shielding 40 Propulsion Shielding 66 Phase Shifting 15 Evasion (%) 70 Targeting Accuracy 20 Recoil Reduction 6 Matter Filtering 30 Energy Filtering 30 Particle Charging 30 Kinecelleration 50 Offensive Hacking 28 Defensive Hacking 10 Relay Coupler Types 9 Relay Coupler Value 291 Item Schematics ----------------- Assault Drone Bay | -5/Zhirov | Free Exp. Heat Sink | -5/Zhirov | Free Exp. Optical Array | -5/Zhirov | Free Imp. Arc Thrower | -5/Zhirov | Free Gravity Flail | -3/Testing | Archive Lgt. Antimatter Cannon | -3/Testing | Archive Hvy. Antimatter Reactor | -3/Testing | Archive Lrn. Phase Cannon | -3/Testing | Archive Imp. Thermal Defense Suite | -3/Testing | Archive Exp. Targeting Computer | -3/Testing | Archive Exp. Cooling System | -3/Testing | Archive Kinetic Spear | -3/Testing | Archive Thermal Defense Suite | -3/Testing | Archive Exp. Matter Compressor | -3/Testing | Archive Adv. Quantum Shading Machine | -2/Quarantine | Archive Exp. Thermal Shield | -2/Quarantine | Archive Ionic Axe | -2/Quarantine | Archive Exp. Transmission Jammer | -2/Quarantine | Archive Cld. Impulse Thruster | -2/Quarantine | Archive Exp. Signal Interpreter | -2/Quarantine | Archive Adv. Gravity Neutralizer | -2/Quarantine | Archive Exp. Biometal Heavy Treads | -2/Section 7 | Archive Hvy. Dispersion Rifle | -2/Section 7 | Archive Imp. Quantum Reactor | -2/Section 7 | Archive Prc. Matter Filter | -2/Section 7 | Archive Robot Schematics ------------------ R-10 Processor | -3/Testing | Archive W-44 Eye | -3/Testing | Archive B-60 Warrior | -3/Testing | Archive A-27 Freighter | -3/Testing | Archive A-15 Conveyor | -2/Quarantine | Archive Fabricated ------------ Nothing Repaired ---------- Imp. EM Shotgun | 10% | -8/Materials Aluminum Leg | 32% | -8/Materials Lgt. Nuclear Core | 38% | -7/Factory Centrium Leg | 11% | -2/Research Studied --------- Hvy. Mass Driver | -5/Factory | Hacked Centrium Leg | -2/Research | Hacked Com. HERF Cannon | -2/Research | Hacked Biometal Heavy Treads | -2/Quarantine | Hacked Adv. Remote Datajack | -2/Quarantine | Hacked Adv. Medium Treads | -2/Section 7 | Hacked Alien Tech Used ----------------- Integrated Reactor Terrabomb Core Cannon Sigix Terminator Sigix Broadsword Phase Redirector Core Regenerator Core Physics Calibrator Transdimensional Reconstructor Achievements -------------- None Challenges ------------ None Game ------ Seed BlanketFactoryNanoactuators Manual? 0 Play Time 05:39:36 Cumulative 807.7 hours Start 2025.12.19 @ 10:15:00 End 2025.12.19 @ 18:43:47 Sessions 5 Manual Loads 0 Difficulty Rogue Special Mode None Game No. 330 Rogue 330 Adventurer 0 Explorer 0 Win Type - Total 85 Types 43/6/15/6/6/1/1/3/0/4 Lore% 97 Gallery% 91 Achievement% 84 Wizard Run 0 Options --------- Layout 1 ASCII 0 Keyboard 0 Movement Numpad Keybinds 0 Fullscreen 1 Font 24/Smallcaps Map View 50x35 Zoom Use 0% Tactical HUD 1 Map Filters NONE Filters NONE Steam 1 RUN: 776036c6-de90-41d0-98cf-092c10266ff8